Workbook

Sheet Cover Page
D1: Add company logo
N2: Version 20.1
B8: Add photo
N13: Notes:
N14: This template may require adjustments by individual operators to meet specific reporting requirements as defined in the site Permit(s)
B29: Annual Performance Report 2022
B31: Permit EPR/XP3005LB
B33: Runcorn Energy From Waste Facility
B35: Runcorn EfW
B37: Viridor Energy Limited
B39: Year: | C39: 2022
B41: Address: | C41: Barlow Way, Runcorn WA7 4HG
B43: Tel: | C43: 01928 502278
B45: Email: | C45: GPowell@viridor.co.uk
B47: Prepared by: | C47: Glenn Powell | F47: Position: | G47: EHS Manager
B49: Approved by: | C49: Darren Bolton | F49: Position: | G49: Plant Manager
B51: Version: | C51: 1
B53: Issue Date: | C53: 2023-01-20

Sheet Contents
A1: =+'Cover Page'!$B$29 -> Annual Performance Report 2022 | E1: =+'Cover Page'!$B$33 -> Runcorn Energy From Waste Facility
A3: Contents | K3: Notes:
A4: Section | B4: Subject | H4: Page | K4: Section references and Page nos. to be inserted
B5: Facility Information | H5: 3 | K5: Sections and Subjects may require adjustment by individual operators to meet specific reporting requirements as defined in the sites Permit(s)
B6: Operational Summary | H6: 4
B7: Operational Data | H7: 5
B8: Performance Form 1 | H8: 6
B9: Energy Form 1 | H9: 7
B10: Permit Compliance | H10: 8
B11: Improvements | H11: 9
B12: Public Liasion | H12: 10
B13: Residue Quality - Optional | H13: 11
B14: Emissions to Water | H14: 12
B15: Emissions to Air (periodically monitored) | H15: 13
B16: Emissions to Air (continuously monitored) | H16: 14
B17: Hydrogen Chloride emissions | H17: 15
B18: Sulphur Dioxdie emsissions | H18: 16
B19: Oxides of Notrigen emissions | H19: 17
B20: Total Organic Carbon emissions | H20: 18
B21: Particulate Matter emissions | H21: 19
B22: Carbon Monoxide emissions | H22: 20
B23: Ammonia emissions | H23: 21
B24: Incinerator Bottom Ash (IBA) | H24: 22
B25: Air Pollution Control Residues (APCR) | H25: 23
B26: Invalid Readings Log | H26: 24
A28: Version Control
A29: Section | B29: Information | H29: Date
A36: Distribution
A37: Copy | B37: Name, Role | H37: No.
A46: This report is required under the Industrial Emissions Directive’s Article 55(2) requirements on reporting and public information on waste incineration plants and co-incineration plants, which require the operator to produce an annual report on the functioning and monitoring of the plant and make it available to the public.

Sheet Facility Info
A1: =+'Cover Page'!$B$29 -> Annual Performance Report 2022 | E1: =+'Cover Page'!$B$33 -> Runcorn Energy From Waste Facility
A3: Plant Description and Design | K3: Notes:
A5: Runcorn Energy from Waste (EfW) facility is located to the north of the Runcorn site known as Weston Point. The EfW facility has a total capacity of approximately 350MW (thermal input) and is capable of generating up to approximately 86MW of electrical power and 110 tonnes per hour steam. The plant comprises of two parts: Phase 1 and Phase 2. Phase 1 consists of two lines 1 and 2. Phase 2 consists of two further lines; 3 and 4. The capacity of the facility is 1,100,000 tonnes per calendar year. | K5: Include summary of plant design, design capacity, no. of combustion lines, electrical and heat capacity and any other general information that descibes the facility, its location and purpose
A20: Summary of Operational Processes and Procedures
A22: Incoming refuse vehicles and bulk transport enter the site and proceed to the incoming weighbridge. After weighing in, the vehicles continue to the enclosed reception hall where they will discharge their load into the waste storage bunker. Vehicle loads are inspected randomly in the tipping hall to confirm the nature of incoming waste. Once vehicles have deposited their waste they leave the site via a second weighbridge. Potential emissions of odour and dust from the tipping hall and refuse bunkers are controlled by forced draught fans located above the refuse bunkers. These draw air from the bunker hall and reception area into the furnace to feed the combustion process, creating a slight negative pressure. The waste combustion takes place on a Keppel Seghers grate, the heat generated being used to create superheated steam which is used to drive the steam turbine and generate electricity. Heat from turbine bleeds can be used for combined heat and power systems and is also used for pre-heating of combustion air and operation of the deaerator to maximise efficiency. Condensing of the steam takes place via cooling towers and the condensate cycles back around in a closed system (other than necessary top up). Emission control is via injection of ammonia into the furnace for NOx control via SNCR technology while at the end of the boiler and gas path lime and activated carbon are added to remove acidic gases, dioxins, furans and heavy metals before this is all filtered by a bag filter system to remove the lime, carbon and particulates from the flue gases producing APCr. Emissions are measured continuously in stack and by extractive stack measurements as required by the environmental permit. Residues from the process, IBA and APCr are both sent to specialist reprocessing sites. IBA has metals removed for recyling and is reprocessed into IBAA (Incinerator Bottom Ash Aggregate). The APCr is sent to OCO Technology (formally Carbon8) who use accelerated carbonation technology to produce a carbon negative aggregate material which encapsulates the absorbed substances from the APCr. Maintenance is controlled by a CMMS system and consists of planned preventative maintenance (ppm), derived from both experience of the plant and OEM requirements, and reactive maintenance. The site has two annual shutdown periods (one per Phase) during which maintenance and statutory inspections are carried out. The plant operates a document control system meeting the requirements of the Viridor document management system and ISO 9001, 14001, 45001 and 50001. On December 18th 2020 the sites Environmental Permit was transfered from Viridor Waste Management to Viridor Energy and a new permit number issued (EPR/XP3005LB) | K22: Include summary of key processes and procedures such as (but not limited to); waste reception, control rooms, grate, bed and bolier, energy & heat generation, cooling systems, residue management, emission controls, health and safety systems, maintenance

Sheet Operational Data
A1: =+'Cover Page'!$B$29 -> Annual Performance Report 2022 | E1: =+'Cover Page'!$B$33 -> Runcorn Energy From Waste Facility
A3: Operational Data | K3: Notes:
A4: Plant Size | B4: 1100000 | D4: tonnes pa | E4: 38 | F4: MWth | G4: 51 | H4: MWe | K4: * - RDF to include SRF
A5: No. of combustion lines | B5: 4 | D5: No. of Turbines: | F5: 2 | K5: ** - CHP plants only
K6: 2020 updates include; heat in MWh, water in Litres, NCV in MJ/kg
A7: Waste types received | B7: Unit | C7: Q1 | D7: Q2 | E7: Q3 | F7: Q4 | G7: Year Total | H7: %
A8: Household / Local Authority | B8: tonnes | C8: 244130.92 | D8: 183789.78 | E8: 228547.07 | F8: 273246.72 | G8: =SUM(C8:F8) -> 929714.49 | H8: =IF(G8>0,G8/$G$15,"-") -> 1 | K8: Availabiity Definition: 'the availability of a line is to be calculated by the number of hours the line reported Continuously Monitored emission levels to the Regulator through the calendar year divided by the total number of hours in that year. The overall plant availability is calculated as the Mean of all lines in the plant. For clarity this includes periods of Other Than Normal Operating Conditions (OTNOC) and abnormal operation.' Rationale: The primary function of an Energy from Waste facility is the disposal of waste. It follows therefore that the availability of a plant is determined by the period of time a facility spends undertaking this activity.
A9: Commercial & Industrial | G9: =SUM(C9:F9) -> 0 | H9: -
A10: Hazardous | G10: 0 | H10: -
A11: Clinical | G11: 0 | H11: -
A12: Waste wood (biomass) | G12: 0 | H12: -
A13: Refuse Derived Fuel * - H'hold/LA | G13: =SUM(C13:F13) -> 0 | H13: -
A14: Refuse Derived Fuel * - C&I | G14: 0 | H14: -
A15: Total waste combusted | C15: =SUM(C8:C14) -> 244130.92 | D15: =SUM(D8:D14) -> 183789.78 | E15: =SUM(E8:E14) -> 228547.07 | F15: =SUM(F8:F14) -> 273246.72 | G15: =SUM(G8:G14) -> 929714.49 | H15: 1
A16: Rejected Waste | G16: =SUM(C16:F16) -> 0 | H16: =IF(G16>0,G16/$G$15,"-") -> -
A17: Unprocessed waste transferred out | G17: =SUM(C17:F17) -> 0 | H17: =IF(G17>0,G17/$G$15,"-") -> -
A19: Energy Useage / Export | B19: Unit | C19: Q1 | D19: Q2 | E19: Q3 | F19: Q4 | G19: Year Total | H19: KWh/te
A20: Power Generated | B20: MWh | C20: 162986.39 | D20: 122939.29 | E20: 173718.81 | F20: 182605.25 | G20: =SUM(C20:F20) -> 642249.74 | H20: =IF(G20>0,G20*1000/G15,"-") -> 690.8031949
A21: Power Exported | C21: 142367.51 | D21: 106702.64 | E21: 152935.32 | F21: 160296.93 | G21: =SUM(C21:F21) -> 562302.4 | H21: =IF(G21>0,G21*1000/G15,"-") -> 604.8119138
A22: Power Used on site | C22: 20788.542 | D22: 17836.431 | E22: 21486.982 | F22: 22308.471 | G22: =SUM(C22:F22) -> 82420.426 | H22: =IF(G22>0,G22*1000/G15,"-") -> 88.65132994
A23: Power Imported | C23: 169.662 | D23: 1599.781 | E23: 703.5 | F23: 0.151 | G23: 2473.094 | H23: =IF(G23>0,G23*1000/G15,"-") -> 2.660057498
A24: Parasitic Load | B24: % | C24: =IF(C20>0,1-C21/(C20+C23),"-") -> 0.1274150836 | D24: 0.1432195604 | E24: 0.123189459 | F24: 0.1221676406 | G24: =IF(G20>0,1-G21/(G20+G23),"-") -> 0.1278385527
A25: Thermal Energy Produced ** | B25: MWh | C25: 151039.46 | D25: 107007.27 | E25: 106497.26 | F25: 137097.36 | G25: =SUM(C25:F25) -> 501641.35 | H25: =IF(G25>0,G25*1000/G15,"-") -> 539.5649475
A26: Thermal Energy Exported ** | C26: 151039.46 | D26: 107007.27 | E26: 106497.26 | F26: 137097.36 | G26: 501641.35 | H26: =IF(G26>0,G26*1000/G15,"-") -> 539.5649475
A27: R1 value | G27: Design / Operational / n/a
A29: Waste Disposal & Recovery | B29: Unit | C29: Q1 | D29: Q2 | E29: Q3 | F29: Q4 | G29: Year Total | H29: % inputs
A30: APC Residues - produced | B30: tonnes | C30: 7909.86 | D30: 5764.44 | E30: 7357 | F30: 7970.36002 | G30: =SUM(C30:F30) -> 29001.66002 | H30: =IF(G30>0,G30/G15,"-") -> 0.03119415727
A31: IBA - produced | C31: 50108.68456 | D31: 41549.26 | E31: 50000 | F31: 53563.87452 | G31: 195221.8191 | H31: =IF(G31>0,G31/G15,"-") -> 0.2099803985
A32: Metals recycling | G32: =SUM(C32:F32) -> 0 | H32: =IF(G32>0,G32/$G$15,"-") -> -
A33: Other | C33: 0 | D33: 0 | E33: 0 | F33: 0 | G33: =SUM(C33:F33) -> 0 | H33: =IF(G33>0,G33/$G$15,"-") -> -
A34: Other | C34: 0 | D34: 0 | E34: 0 | F34: 0 | G34: 0 | H34: =IF(G34>0,G34/$G$15,"-") -> -
A35: Other | C35: 0 | D35: 0 | E35: 0 | F35: 0 | G35: 0 | H35: =IF(G35>0,G35/$G$15,"-") -> -
A37: Raw Material Usage | B37: Unit | C37: Q1 | D37: Q2 | E37: Q3 | F37: Q4 | G37: Year Total | H37: kg or Ltr /te
A38: Mains Water | B38: ltrs | G38: =SUM(C38:F38) -> 0 | H38: =IF(G38>0,G38/$G$15,"-") -> -
A39: Other Water | B39: ltrs | C39: 621210.5975 | D39: 176037.7 | E39: 175001.518 | F39: 208559.09 | G39: 1180808.905 | H39: =IF(G39>0,G39/G15,"-") -> 1.270076909
A40: Ammonia | B40: kgs | C40: 615200 | D40: 390350 | E40: 549000 | F40: 448604.8782 | G40: 2003154.878 | H40: =IF(G40>0,G40/G15,"-") -> 2.154591436
A41: Urea | B41: kgs | C41: 0 | G41: =SUM(C41:F41) -> 0 | H41: =IF(G41>0,G41/$G$15,"-") -> -
A42: Activated Carbon | B42: kgs | C42: 53728.88 | D42: 46190 | E42: 66000 | F42: 64810.87 | G42: 230729.75 | H42: =IF(G42>0,G42/G15,"-") -> 0.2481726944
A43: Lime / hydrated lime | B43: kgs | C43: 4341960 | D43: 2990130 | E43: 4036000 | F43: 4053100 | G43: 15421190 | H43: =IF(G43>0,G43/G15,"-") -> 16.58701695
A44: Fuel oil | B44: ltrs | G44: 0 | H44: =IF(G44>0,G44/$G$15,"-") -> -
A45: Gas | B45: kgs | C45: 75352.77383 | D45: 136480.7966 | E45: 108684.2105 | F45: 21042.67425 | G45: 341560.4552
A46: Other | C46: 0 | D46: 0 | E46: 0 | F46: 0 | G46: 0
A48: Summary | B48: Line/Unit | C48: Q1 | D48: Q2 | E48: Q3 | F48: Q4 | G48: Year Total | J48: Hrs in year
A49: Availability of waste combustion by line, hrs | B49: 1 | C49: 2079 | D49: 1453 | E49: 1982 | F49: 2208 | G49: =SUM(C49:F49) -> 7722 | H49: =G49/$J$49 -> 0.8815068493 | J49: 8760
B50: 2 | C50: 2156 | D50: 1935 | E50: 1958 | F50: 2208 | G50: 8257 | H50: =G50/$J$49 -> 0.9425799087 | J50: Hrs in Q4
B51: 3 | C51: 1962 | D51: 1358 | E51: 2164 | F51: 2208 | G51: 7692 | H51: =G51/$J$49 -> 0.8780821918 | J51: 2208
B52: 4 | C52: 2082 | D52: 1655 | E52: 2179.5 | F52: 2108 | G52: 8024.5 | H52: =G52/$J$49 -> 0.9160388128
B53: 5 | C53: 0 | G53: =SUM(C53:F53) -> 0
A54: Overall Availability, mean avg. of all lines, hrs | C54: =SUM(C49:C52)/4 -> 2069.75 | D54: =SUM(D49:D52)/4 -> 1600.25 | E54: =SUM(E49:E52)/4 -> 2070.875 | F54: =SUM(F49:F52)/4 -> 2183 | G54: =AVERAGE(G49:G52) -> 7923.875 | H54: =G54/$J$49 -> 0.9045519406
A55: Hours of turbine operations, hrs | B55: 1 | C55: 2128 | D55: 1883 | E55: 1980 | F55: 2208 | G55: 8199 | H55: =G55/$J$49 -> 0.9359589041
A56: Hours of turbine operations, hrs | B56: 2 | C56: 2150 | D56: 1699 | E56: 2175 | F56: 2208 | G56: 8232 | H56: =G56/$J$49 -> 0.9397260274
A57: Hours of heat / steam export | C57: 2160 | D57: 1968 | E57: 2016 | F57: 2208 | G57: 8352 | H57: =IF(B57>0,G56/J49,"n/a") -> n/a
A58: Net Calorific Value of waste | B58: MJ/kg | C58: 10.845 | D58: 11 | E58: 11.4 | F58: 10.945 | G58: =AVERAGE(C58:F58) -> 11.0475 | H58: -
A59: Abnormal Events | B59: qty. | G59: 0 | H59: =IF(G59>0,"yes","no") -> no
A60: Abnormal operation | B60: hours | G60: 0 | H60: =+(G60)/J49 -> 0
A61: Permit Breaches | B61: qty. | C61: 2 | D61: 2 | E61: 0 | G61: 4 | H61: =IF(G61>0,"yes","no") -> yes

Sheet Operational Summary
A1: =+'Cover Page'!$B$29 -> Annual Performance Report 2022 | E1: =+'Cover Page'!$B$33 -> Runcorn Energy From Waste Facility
A3: Summary of Plant Operations and Maintenance during the period. | K3: Notes:
A5: During the whole of 2022 the site facility accepted 929,714 tonnes of waste from municipal sources. The facility generated 642,250 MW of electricity, exporting 562,302 MW while generating 501,641 in the form of steam for use within the connected Inovyn works. Overall availability for the whole of 2022 was 90.5% acorss the 4 lines. | K5: Include summary of key operational and/or mainteanance activity undertaken in the year, such as any major component upgrades and/or replacements
A29: Summary of Residue Handling for the reporting period.
A31: All IBA has been assessed as non hazardous. | K31: Include in here a summary of residue handling regimes and destinations

Sheet Perf. Form 1
A1: =+'Cover Page'!C39 -> 2022 | B1: Q4 Annual Performance Form 1
A3: =+'Cover Page'!B31 -> Permit EPR/XP3005LB | F3: Operator: | G3: =+_xlfn.SINGLE('Cover Page'!B37) -> Viridor Energy Limited
A4: Facility: | B4: =+'Cover Page'!B33:I33 -> Runcorn Energy From Waste Facility | F4: Form: | G4: Performance 1
A6: Reporting Period from: | D6: 2022-01-01 | F6: to: | G6: 2022-12-31
A8: =+A1 -> 2022 | B8: Period Reporting of Waste Disposal and Recovery
A9: Waste Description | C9: Disposal Route(s) | E9: Disposal Tonnes | G9: Recovery Tonnes | I9: % / tonne of waste incinerated
A10: 1) Hazardous Wastes
A11: APC Residues | C11: R1 | G11: ='Operational Data'!G30 -> 29001.66002 | I11: ='Operational Data'!G30/'Operational Data'!G8 -> 0.03119415727
A12: IBA | I12: =IF((E12+G12)>0,(E12+G12)/'Operational Data'!$G$15, "-") -> -
I13: =IF((E13+G13)>0,(E13+G13)/'Operational Data'!$G$15, "-") -> -
I14: =IF((E14+G14)>0,(E14+G14)/'Operational Data'!$G$15, "-") -> -
A15: Total Hazardous Waste | E15: =SUM(E11:F14) -> 0 | G15: =SUM(G11:H14) -> 29001.66002 | I15: =IF(G15>0,G15/'Operational Data'!G15, "-") -> 0.03119415727
A17: 2) Non-Hazardous Wastes
A18: IBA | C18: R1 | G18: ='Operational Data'!G31 -> 195221.8191 | I18: ='Operational Data'!G31/'Operational Data'!G8 -> 0.2099803985
A19: Ferrous Metal | I19: =IF((E19+G19)>0,(E19+G19)/'Operational Data'!$G$15, "-") -> -
A20: Process Water | I20: =IF((E20+G20)>0,(E20+G20)/'Operational Data'!$G$15, "-") -> -
I21: =IF((E21+G21)>0,(E21+G21)/'Operational Data'!$G$15, "-") -> -
I22: =IF((E22+G22)>0,(E22+G22)/'Operational Data'!$G$15, "-") -> -
A23: Total Non-Hazardous Waste | E23: =SUM(E18:F22) -> 0 | G23: =SUM(G18:H22) -> 195221.8191 | I23: =IF(G23>0,G23/'Operational Data'!G15, "-") -> 0.2099803985
A24: TOTAL WASTE | E24: =+E23+E15 -> 0 | G24: =+G23+G15 -> 224223.4791 | I24: =IF(G24>0,G24/'Operational Data'!G15, "-") -> 0.2411745557
A26: Operator’s comments :
A31: =+A1 -> 2022 | B31: Period Reporting of Water and Other Raw Material Usage
A32: Raw Material | E32: Usage | G32: Unit | H32: Specific Useage | J32: Unit
A33: Mains Water | E33: =+'Operational Data'!G38 -> 0 | G33: m3 | H33: =IF(E33>0,E33/'Operational Data'!E15,"-") -> - | J33: m3/te
A34: Total Water | E34: ='Operational Data'!G39 -> 1180808.905 | G34: m3 | H34: =IF(E34>0,E34/'Operational Data'!G15,"-") -> 1.270076909 | J34: m3/te
A35: Urea / Ammonia | E35: ='Operational Data'!G40 -> 2003154.878 | G35: kg | H35: =IF(E35>0,E35/'Operational Data'!G15,"-") -> 2.154591436 | J35: kg/te
A36: Activated Carbon | E36: ='Operational Data'!G42 -> 230729.75 | G36: kg | H36: =IF(E36>0,E36/'Operational Data'!G15,"-") -> 0.2481726944 | J36: kg/te
A37: Lime / hydrated lime | E37: ='Operational Data'!G43 -> 15421190 | G37: kg | H37: =IF(E37>0,E37/'Operational Data'!G15,"-") -> 16.58701695 | J37: kg/te
A39: Operator’s comments :
A43: =+A31 -> 2022 | B43: Period Reporting of other performance indicators
A44: Parameter | C44: Results by Line
C45: A1 | D45: A2 | E45: A3 | F45: A4 | I45: Turbine 1 | J45: Turbine 2
A46: Operating hours for the year, hours | C46: ='Operational Data'!G49 -> 7722 | D46: ='Operational Data'!G50 -> 8257 | E46: ='Operational Data'!G51 -> 7692 | F46: ='Operational Data'!G52 -> 8024.5 | I46: ='Operational Data'!G55 -> 8199 | J46: ='Operational Data'!G56 -> 8232
A47: Number of periods of abnormal operation, qty. | C47: 0 | D47: 0 | E47: 0 | F47: 0
A48: Cumulative hours of abnormal operation for this year, hours | C48: 0 | D48: 0 | E48: 0 | F48: 0
A50: Operator’s comments :
A55: Signed: | G55: Date: | H55: 2023-01-20

Sheet Energy Form 1
A1: =+'Cover Page'!C39 -> 2022 | B1: Reporting of Energy Usage/Export
A3: =+'Cover Page'!B31 -> Permit EPR/XP3005LB | F3: Operator: | G3: Viridor Energy Limited
A5: Facility: | B5: =+'Cover Page'!B33:I33 -> Runcorn Energy From Waste Facility | F5: Form: | G5: Energy 1
A7: Reporting Period from: | D7: =+'Perf. Form 1'!D6:E6 -> 2022-01-01 | F7: to: | G7: =+'Perf. Form 1'!G6:H6 -> 2022-12-31
A9: Energy Source | D9: Energy Usage | F9: Unit | G9: Specific Useage (KWh/tonne incinerated
A10: Electricity Produced | D10: =+'Operational Data'!G20 -> 642249.74 | F10: MWh | G10: =D10*1000/'Operational Data'!G15 -> 690.8031949
A11: Electricity Imported | D11: =+'Operational Data'!G23 -> 2473.094 | F11: MWh | G11: =D11*1000/'Operational Data'!G15 -> 2.660057498
A12: Electricity Exported | D12: =+'Operational Data'!G21 -> 562302.4 | F12: MWh | G12: =D12*1000/'Operational Data'!G15 -> 604.8119138
A13: Gas Oil | D13: 0 | F13: litres
A14: Steam/hot water exported | D14: =+'Operational Data'!G26 -> 501641.35 | F14: GWh | G14: =D14*1000/'Operational Data'!G15 -> 539.5649475
A18: Operator’s comments :
A29: Signed: | G29: Date: | H29: 2023-01-20

Sheet Residue Quality
A1: =+'Cover Page'!$B$29 -> Annual Performance Report 2022 | E1: =+'Cover Page'!$B$33 -> Runcorn Energy From Waste Facility
A3: Residue Quality Monitoring Requirements
A5: Summary of monitoring undertaken and compliance
A6: IBA undergoes 2 monthly samplings as required by permit conditon 3.5.1c and table 3.4
A8: APCr is sampled quareterly as per permit condition 3.5.1c and table 3.4
A13: Commentary on any specific events
A14: Date & Event | C14: Description
A23: Residue Quality Monitoring Results
A24: Parameter (unit) | C24: Limit | D24: Normal Operation
D25: Bottom ash | F25: APC Residues
A26: Loss on Ignition (average %) | C26: <5% | D26: =(1.23+3.75+2.35+2.45)/4 -> 2.445
A27: Total Organic Carbon (average %) | C27: <3%
A28: No. of Assessments Undertaken | C28: --- | D28: 24 | F28: 4
A29: No. of Hazardous Results | C29: --- | D29: 0
A31: Comments :
A32: All IBA remained non-hazardous as per the ESA protocol within Q4 2022. 6 samples are taken for each phase of the facility and 1 sample per phase for APCr.

Sheet Improvements
A1: =+'Cover Page'!$B$29 -> Annual Performance Report 2022 | E1: =+'Cover Page'!$B$33 -> Runcorn Energy From Waste Facility
A3: Summary of Plant Improvements
A5: Summary of any efficiency improvements that have been completed within this quarter.
A6: Steam losses • A comprehensive study was completed at the Runcorn EFW plant across all four lines utilising steam, water, and condensate flows to identify potential losses. These losses were addressed in the 2022 outages and a subsequential study has indicated a recovery of approximately 4t/hr of steam per Phase (two lines). Turbine efficiency • Major overhaul of P1 turbine has provided an efficiency improvement of 0.5Mwe/hr. Steam cycle efficiency • A review of the steam cycle identified an opportunity to optimise the Deaerator steam pressure. This adjustment is providing an approximate power improvement of 80-100kWe/hr per line. Cooling towers • Control philosophy change to target turbine back pressure rather than a set cooling tower water temperature. Initial calculations estimate an average annual improvement of 180-200kWe/hr per Phase. The most significant improvements will be observed when the ambient temperature is low and at times of high steam exports from Phase 1. Data is currently being collected following the control change to demonstrate the improvement. However, a full year of data is required to accurately calculate this. LED lighting • Runcorn EFW is currently installing LED lighting in the boiler house. The quality of light emitted from these LED fittings is significantly better creating and safer and happier place to work. There is an additional benefit of achieving over a 20% reduction in energy consumption. Further lighting projects are being planned throughput the boiler house, as well as reviewing the flood lighting for external areas and the tipping hall.
A16: Summary of any permit improvement conditions that have been completed within this quarter and the resulting environmental benefits.
A17: N/A
A27: Summary of any changes to the plant or operating techniques which required a variation to the permit and a summary of the resulting environmental impact.
A28: N/A
A38: Summary of any other improvements made to the plant or planned to be made and a summary of the resulting environmental benefits.
A39: Noise - Railhead operations had been time restricted due to substantiated noise impacts. Several measures to reduce noise have been enacted, including the use of chain socks on the crane, reducing crane speed and the use of foam pads when placing rail boxes on the ground. Following a re-assessment of noise after measures adopted, time restrictions were lifted. Noise control Audit carried out to ascertain dominant noise sources on site. Engineering solutions found and will be implemented in H1. Following these improvements a further BS4142 assessment will be carried out to ensure no adverse impact on nearby receptors. Cooling tower plume - Due to some complaints of cooling tower plume drifting across to Clarks Terrace on occassion, a 'plume abatement' technique has been adopted to reduce the likelyhood of the plume grounding on the properties at Clarks Terrace.

Sheet Permit Compliance
A1: =+'Cover Page'!$B$29 -> Annual Performance Report 2022 | E1: =+'Cover Page'!$B$33 -> Runcorn Energy From Waste Facility
A3: Summary of Permit Compliance
A5: Compliance with permit limits for continuously monitored pollutants
A7: The plant met its emission limits as shown in the table below: 2022
A8: Substance | C8: Percentage time compliant during operation | L8: Notes:
C9: Half-hourly limit | F9: Daily limit | L9: Report to 2 decimal places, i.e. xx.xx% Please provide a brief summary of each notification or non-compliance in the table (rather than just referring to notifications that were sent to the Regulator).
A10: Particulates | C10: 1 | F10: 1
A11: Oxides of nitrogen | C11: 1 | F11: 1
A12: Sulphur dioxide | C12: 0.9999 | F12: 1
A13: Carbon monoxide | C13: 100% - 95% of 10-min averages | F13: 1
A14: Total organic carbon | C14: 1 | F14: 1
A15: Hydrogen chloride | C15: 1 | F15: 1
A18: Summary of any notifications or non-compliances under the permit
A19: Date | B19: Summary of notification or non-compliance [including Line/Reference] | E19: Reason | H19: Measures taken to prevent reoccurrence
A20: 2022-02-15 | B20: 1 x Suspended solids reading of 215mg/litre against limit of 150 | E20: Combination of rainfall and pumping from site water tanks | H20: Better coordination of tank pumping
A21: 2022-03-31 | B21: 1 x SO2 half hourly value of 237mg/m3 against limit of 200. | E21: High Sulphur content of waste feed | H21: Waste inspections and customer liaison
A22: 2022-06-06 | B22: 16 X individual 10 min CO exceedances (88.9%ile compliance for the day) | E22: Boiler tube leak caused poor combustion within furnace. | H22: Study into failure mode of tube leaks may help reduce further occurrence.
A23: 2022-06-28 | B23: Schedule 5 Notification for plant trip causing smoke to enter boiler house. | E23: Reason for trip currently being investigated | H23: Outcome of investigation will ensure appropriate measures put in place.
A28: Summary of any complaints received and actions to taken to resolve them.
A29: Date | B29: Summary of complaint [including Line/Reference] | E29: Reason * | H29: Measures taken to prevent reoccurrence
B30: Note: All complaints are currently under legal privilege due to threat of legal action
E35: * including whether substantiated by the operator or the EA

Sheet Public Liaison
A1: =+'Cover Page'!$B$29 -> Annual Performance Report 2022 | E1: =+'Cover Page'!$B$33 -> Runcorn Energy From Waste Facility
A3: Details of Public & Stakeholder Liasion
A5: Summary of events held during the reporting period.
A6: Date | C6: Description
A7: 2022-02-24 | C7: Quarterly public liaison meeting
A9: 2022-04-25 | C9: Quarterly public liaison meeting
A11: 2022-07-18 | C11: Quarterly public liaison meeting
A13: 2023-10-17 | C13: Quarterly public liaison meeting
A16: List of events planned for next year
A17: Date | C17: Description
A18: 2023-01-16 | C18: Quarterly public liaison meeting

Sheet Water
A1: =+'Cover Page'!$B$29 -> Annual Performance Report 2022 | E1: =+'Cover Page'!$B$33 -> Runcorn Energy From Waste Facility
A3: Emissions to Water
A5: Summary of monitoring undertaken and compliance
A6: Monitoring and compliance as per section 3.5 and table 3.2 of the Enviornmental Permit (EPR/RP3638CG/V005)
A13: Commentary on any specific events
A14: Date & Event | C14: Description
A15: 2022-02-15 | C15: Suspended solid value of 215mg/litre against limit if 150.
A22: Emissions to Water / Sewer
A23: Parameter | D23: Monitoring Frequency | G23: Limit | H23: Target | I23: Max. | J23: Average
A24: Suspended Solids | D24: Weekly, Spot (when flow present) | G24: 150 mg/l | H24: 100 mg/l | I24: 215 | J24: 18.8
A25: pH | D25: Weekly, Spot (when flow present) | G25: 4 - 11 | H25: 5 – 9 | I25: 10.5 | J25: 8.2
A26: Temperature | D26: Weekly, Spot (when flow present) | G26: 40 oC | I26: 36 | J26: 25.9
A27: Available Chlorine | D27: Weekly, Spot (when flow present) | G27: 20 mg/l | H27: 5 mg/l | I27: 0.3 | J27: 0.09
A28: Oil&grease | D28: Weekly, Spot (when flow present) | G28: None visible | H28: None visible | I28: None visible | J28: None visible

Sheet Air (periodic)
A1: =+'Cover Page'!$B$29 -> Annual Performance Report 2022 | E1: =+'Cover Page'!$B$33 -> Runcorn Energy From Waste Facility
A3: Emissions to Air (periodically monitored)
A5: Summary of monitoring undertaken, standards used and compliance | L5: Notes:
A6: Bi-annual spot sampling was completed in Q3 between the 5th - 9th October. | L6: Template may require adjustment for any bespoke monitoring requirements of permit.
A9: Results of emissions to air that are periodically monitored
A10: Substance | C10: Ref. Period | D10: Emission Limit Value | F10: Biannual 2 | L10: User to add additional tables as necessary, depending on whether quarterly or bi-annual reporting is required for the compliance year
F11: A1 | G11: A2 | H11: A3 | I11: A4
A12: Hydrogen fluoride | C12: 1 hr | D12: 2 mg/m3 | F12: 0.62 | G12: 0.53 | H12: 0.2 | I12: 0.18
A13: Cd and Th and their compounds | C13: 6-8hrs | D13: 0.05 mg/m3 | F13: 0.001 | G13: 0.0016 | H13: 0.0014 | I13: 0.001
A14: Hg and its compounds | C14: 6-8hrs | D14: 0.05 mg/m3 | F14: 0.0052 | G14: 0.0031 | H14: 0.0033 | I14: 0.002
A15: Sb, As, Pb, Cr, Co, Cu, Mn, Ni, V and their compounds | C15: 6-8hrs | D15: 0.5 mg/m3 | F15: 0.03701 | G15: 0.21721 | H15: 0.04447 | I15: 0.01765
A16: Dioxins & Furans (I-TEQ) | C16: 6-8hrs | D16: 0.1 ng/m3 | F16: 0.0162 | G16: 0.0028 | H16: 0.0041 | I16: 0.0064
A17: PCBs (WHO-TEQ Humans / Mammals) | C17: 6-8hrs | D17: None set ng/m3 | F17: 0.0017 | G17: 0.00025 | H17: 0.0004 | I17: 0.0011
A18: PCBs (WHO-TEQ Fish) | C18: 6-8hrs | D18: None set ng/m3 | F18: 0.0001 | G18: 1.3e-05 | H18: 2e-05 | I18: 4.9e-05
A19: PCBs (WHO-TEQ Birds) | C19: 6-8hrs | D19: None set ng/m3 | F19: 0.0045 | G19: 0.0006 | H19: 0.0011 | I19: 0.0025
A20: Dioxins & Furans (WHO-TEQ Humans / Mammals) | C20: 6-8hrs | D20: None set ng/m3 | F20: 0.0146 | G20: 0.0023 | H20: 0.0036 | I20: 0.0058
A21: Dioxins & Furans (WHO-TEQ Fish) | C21: 6-8hrs | D21: None set ng/m3 | F21: 0.0169 | G21: 0.0028 | H21: 0.0041 | I21: 0.0063
A22: Dioxins & Furans (WHO-TEQ Birds) | C22: 6-8hrs | D22: None set ng/m3 | F22: 0.0261 | G22: 0.0049 | H22: 0.0074 | I22: 0.0095
A23: Anthanthrene | C23: 6-8hrs | D23: None set µg/m3 | F23: <0.0015 | G23: <0.0014 | H23: <0.0014 | I23: <0.0014
A24: Benzo(a)anthracene | C24: 6-8hrs | D24: None set µg/m3 | F24: <0.01 | G24: <0.01 | H24: <0.01 | I24: <0.01
A25: Benzo(a)pyrene | C25: 6-8hrs | D25: None set µg/m3 | F25: <0.0015 | G25: <0.01 | H25: <0.01 | I25: <0.01
A26: Benzo(b)fluoranthene | C26: 6-8hrs | D26: None set µg/m3 | F26: <0.01 | G26: <0.01 | H26: <0.01 | I26: <0.01
A27: Benzo(b)naptho(2,1-d) thiophene | C27: 6-8hrs | D27: None set µg/m3 | F27: <0.0015 | G27: <0.0014 | H27: <0.01 | I27: <0.0014
A28: Benzo(c)phenanthrene | C28: 6-8hrs | D28: None set µg/m3 | F28: <0.0015 | G28: <0.0014 | H28: <0.0014 | I28: <0.0014
A29: Benzo(ghi)perylene | C29: 6-8hrs | D29: None set µg/m3 | F29: <0.01 | G29: 0.01 | H29: 0.01 | I29: 0.01
A30: Benzo(k)fluoranthene | C30: 6-8hrs | D30: None set µg/m3 | F30: <0.0015 | G30: <0.01 | H30: <0.01 | I30: <0.01
A31: Cholanthrene | C31: 6-8hrs | D31: None set µg/m3 | F31: <0.0015 | G31: <0.0014 | H31: <0.0014 | I31: <0.0014
A32: Chrysene | C32: 6-8hrs | D32: None set µg/m3 | F32: <0.02 | G32: 0.01 | H32: 0.01 | I32: 0.01
A33: Cyclopenta(cd)pyrene | C33: 6-8hrs | D33: None set µg/m3 | F33: <0.0015 | G33: <0.01 | H33: 0.01 | I33: <0.01
A34: Dibenzo(ai)pyrene | C34: 6-8hrs | D34: None set µg/m3 | F34: <0.0015 | G34: <0.0014 | H34: <0.0014 | I34: <0.0014
A35: Dibenzo(ah)anthracene | C35: 6-8hrs | D35: None set µg/m3 | F35: <0.0015 | G35: <0.0014 | H35: <0.0014 | I35: <0.0014
A36: Fluoranthene | C36: 6-8hrs | D36: None set µg/m3 | F36: 0.07 | G36: 0.06 | H36: 0.12 | I36: 0.07
A37: Indeno(123-cd) pyrene | C37: 6-8hrs | D37: None set µg/m3 | F37: <0.0015 | G37: <0.01 | H37: 0.01 | I37: 0.0034
A38: Naphthalene | C38: 6-8hrs | D38: None set µg/m3 | F38: 1.28 | G38: 0.06 | H38: 12.23 | I38: 0.21
A39: Comments :

Sheet Air (CEMS)
A1: =+'Cover Page'!$B$29 -> Annual Performance Report 2022 | I1: =+'Cover Page'!$B$33 -> Runcorn Energy From Waste Facility
A3: Emissions to Air (continously monitored)
N4: Notes:
A5: Summary of monitoring undertaken, standards used and compliance | N5: Template may require adjustment for any bespoke monitoring requirements of permit
A6: All results below monitored by CEMS. | N6: Report to 2 decimal places, i.e. xx.xx%
A11: Results of emissions to air that are continuously monitored (maximum and average values for each line)
A12: Substance | B12: Reference Period | C12: Emission Limit Value | D12: A1 | F12: A2 | H12: A3 | J12: A4
D13: Max. | E13: Avg. | F13: Max. | G13: Avg. | H13: Max. | I13: Avg. | J13: Max. | K13: Avg.
A14: Oxides of nitrogen | B14: Daily mean | C14: 200 mg/m3 | D14: =NOx!O19 -> 194.44 | E14: =NOx!N19 -> 182.705 | F14: =NOx!O34 -> 199.31 | G14: =NOx!N34 -> 181.1241667 | H14: =NOx!O49 -> 198.65 | I14: =NOx!N49 -> 188.2833333 | J14: =NOx!O64 -> 196.82 | K14: =NOx!N64 -> 187.61
B15: ½ hourly mean | C15: 400 mg/m3 | D15: =NOx!M19 -> 347.55 | E15: =NOx!L19 -> 182.565 | F15: =NOx!M34 -> 380.44 | G15: =NOx!L34 -> 180.9208333 | H15: =NOx!M49 -> 349.3 | I15: =NOx!L49 -> 187.95 | J15: =NOx!M64 -> 378.52 | K15: =NOx!L64 -> 187.3408333
A16: Particulates | B16: Daily mean | C16: 10 mg/m3 | D16: =Particulates!O19 -> 0.7 | E16: =Particulates!N19 -> 0.3308333333 | F16: =Particulates!O34 -> 4.27 | G16: =Particulates!N34 -> 0.385 | H16: =Particulates!O49 -> 9.49 | I16: =Particulates!N49 -> 1.2075 | J16: =Particulates!O64 -> 6.33 | K16: =Particulates!N64 -> 1.103333333
B17: ½ hourly mean | C17: 30 mg/m3 | D17: =Particulates!M19 -> 1.38 | E17: =Particulates!L19 -> 0.3325 | F17: =Particulates!M34 -> 8.27 | G17: =Particulates!L34 -> 0.3841666667 | H17: =Particulates!M49 -> 29.33 | I17: =Particulates!L49 -> 1.22 | J17: =Particulates!M64 -> 19.67 | K17: =Particulates!L64 -> 1.11
A18: Total Organic Carbon | B18: Daily mean | C18: 10 mg/m3 | D18: =TOC!O19 -> 0.47 | E18: =TOC!N19 -> 0.006950483333 | F18: =TOC!O34 -> 0.35 | G18: =TOC!N34 -> 0.005877459677 | H18: =TOC!O49 -> 1.11 | I18: =TOC!N49 -> 0.01121287296 | J18: =TOC!O64 -> 0.26 | K18: =TOC!N64 -> 0.005175253472
B19: ½ hourly mean | C19: 20 mg/m3 | D19: =TOC!M19 -> 10.45 | E19: =TOC!L19 -> 0.01695048345 | F19: =TOC!M34 -> 14.06 | G19: =TOC!L34 -> 0.007544126848 | H19: =TOC!M49 -> 6.3 | I19: =TOC!L49 -> 0.01204638671 | J19: =TOC!M64 -> 10.1 | K19: =TOC!L64 -> 0.005174616674
A20: Hydrogen chloride | B20: Daily mean | C20: 10 mg/m3 | D20: =HCl!O19 -> 9.11 | E20: =HCl!N19 -> 3.078333333 | F20: =HCl!O34 -> 6.84 | G20: =HCl!N34 -> 0.2291666667 | H20: =HCl!O49 -> 8.01 | I20: =HCl!N49 -> 2.846666667 | J20: =HCl!O64 -> 7.83 | K20: =HCl!N64 -> 2.3775
B21: ½ hourly mean | C21: 60 mg/m3 | D21: =HCl!M19 -> 39.52 | E21: =HCl!L19 -> 3.095833333 | F21: =HCl!M34 -> 16.14 | G21: =HCl!L34 -> 0.2366666667 | H21: =HCl!M49 -> 32.42 | I21: =HCl!L49 -> 2.833333333 | J21: =HCl!M64 -> 43.15 | K21: =HCl!L64 -> 2.375833333
A22: Sulphur dioxide | B22: Daily mean | C22: 50 mg/m3 | D22: ='SO2'!O19 -> 32.8 | E22: ='SO2'!N19 -> 14.59 | F22: ='SO2'!O34 -> 29.56 | G22: ='SO2'!N34 -> 4.474166667 | H22: ='SO2'!O49 -> 46.02 | I22: ='SO2'!N49 -> 23.42583333 | J22: ='SO2'!O64 -> 39.93 | K22: ='SO2'!N64 -> 24.03166667
B23: ½ hourly mean | C23: 200 mg/m3 | D23: ='SO2'!M19 -> 236.97 | E23: ='SO2'!L19 -> 14.55083333 | F23: ='SO2'!M34 -> 88.41 | G23: ='SO2'!L34 -> 4.555833333 | H23: ='SO2'!M49 -> 137.25 | I23: ='SO2'!L49 -> 23.50166667 | J23: ='SO2'!M64 -> 131.62 | K23: ='SO2'!L64 -> 23.93916667
A24: Carbon monoxide | B24: Daily mean | C24: 50 mg/m3 | D24: ='CO 95% 10 min'!Q19 -> 6.41 | E24: ='CO 95% 10 min'!P19 -> 1.599166667 | F24: ='CO 95% 10 min'!Q34 -> 12.54 | G24: ='CO 95% 10 min'!P34 -> 1.3525 | H24: ='CO 95% 10 min'!Q49 -> 12.49 | I24: ='CO 95% 10 min'!P49 -> 1.078333333 | J24: ='CO 95% 10 min'!Q64 -> 23.25 | K24: ='CO 95% 10 min'!P64 -> 1.9075
B25: 95%ile 10-min avg * | C25: 150 mg/m3 * | D25: ='CO 95% 10 min'!M19 -> 30.29781237 | E25: ='CO 95% 10 min'!N19 -> 1.333333333 | F25: ='CO 95% 10 min'!M34 -> 18.80440846 | G25: ='CO 95% 10 min'!N34 -> 1.344642102 | H25: ='CO 95% 10 min'!M49 -> 24.57759033 | I25: ='CO 95% 10 min'!N49 -> 1 | J25: ='CO 95% 10 min'!M64 -> 89.81366433 | K25: ='CO 95% 10 min'!N64 -> 1.666666667
A26: Ammonia | B26: Daily mean | C26: No limit set | D26: ='NH3'!O19 -> 3.29 | E26: ='NH3'!N19 -> 1.423333333 | F26: ='NH3'!O34 -> 1.6 | G26: ='NH3'!N34 -> 0.7383333333 | H26: ='NH3'!O49 -> 1.27 | I26: ='NH3'!N49 -> 0.6516666667 | J26: ='NH3'!O64 -> 6.16 | K26: ='NH3'!N64 -> 0.7591666667
A27: * = delete or amend as appropriate
A28: Comments :
A29: The 237mg/m3 SO2 half hourly exceedance on emission point A1 is detailed on the 'Permit compliance' tab. 31/03/2022

Sheet HCl
A1: =+'Cover Page'!$B$29 -> Annual Performance Report 2022 | E1: =+'Cover Page'!$B$33 -> Runcorn Energy From Waste Facility
A3: Monitoring of Hydrogen Chloride emissions | D3: Whole Installation | G3: See Notes in Cell Q3 | J3: =+A3 -> Monitoring of Hydrogen Chloride emissions | N3: Per Combustion Line | Q3: Notes:
Q4: User to add logic to complete Whole installation, Table A5:G18. From the data in Per Combustion Line, Table J6:O64, subject to No. of lines installed
A5: mg/Nm3 | B5: 1/2 Hourly Reference Periods | E5: Daily Reference Periods
A6: =+'Cover Page'!C39 -> 2022 | B6: 1/2 hourly HCl ELV | C6: Monthly 1/2 hourly mean | D6: Highest 1/2 hourly maximum | E6: Daily HCl ELV | F6: Monthly daily mean | G6: Highest daily maximum | J6: =+A6 -> 2022 | K6: mg/Nm3 | L6: Monthly 1/2 hourly mean | M6: Monthly 1/2 hourly maximum | N6: Monthly daily mean | O6: Monthly daily maximum
A7: Jan | B7: 60 | C7: =AVERAGE(L7,L22,L37,L52) -> 0.49 | D7: =MAX(M7,M22,M37,M52) -> 9.36 | E7: 10 | F7: =AVERAGE(N7,N22,N37,N52) -> 0.4925 | G7: =MAX(O7,O22,O37,O52) -> 3.23 | J7: A1 | K7: Jan | L7: 0.38 | M7: 8.82 | N7: 0.37 | O7: 1.38
A8: Feb | B8: 60 | C8: =AVERAGE(L8,L23,L38,L53) -> 0.2775 | D8: 9.23 | E8: 10 | F8: =AVERAGE(N8,N23,N38,N53) -> 0.245 | G8: =MAX(O8,O23,O38,O53) -> 3.43 | K8: Feb | L8: 0.49 | M8: 6.92 | N8: 0.5 | O8: 1.17
A9: Mar | B9: 60 | C9: =AVERAGE(L9,L24,L39,L54) -> 0.2475 | D9: 11.09 | E9: 10 | F9: =AVERAGE(N9,N24,N39,N54) -> 0.25 | G9: 1.44 | K9: Mar | L9: 0.38 | M9: 3.59 | N9: 0.39 | O9: 0.8 | Q9: Whole Installation table A5:G18:
A10: Apr | B10: 60 | C10: =AVERAGE(L10,L25,L40,L55) -> 0.8325 | D10: 32.42 | E10: 10 | F10: =AVERAGE(N10,N25,N40,N55) -> 0.84 | G10: =MAX(O10,O25,O40,O55) -> 8.01 | K10: Apr | L10: 1.15 | M10: 6.13 | N10: 1.15 | O10: 2.88 | Q10: Mean: for 1/2 hourly and daily periods calculate mean of values across all operational combustion lines for the month
A11: May | B11: 60 | C11: 0.6075 | D11: 9.7 | E11: 10 | F11: 0.6025 | G11: 5.14 | K11: May | L11: 1.11 | M11: 7.28 | N11: 1.06 | O11: 3.93
A12: Jun | B12: 60 | C12: 1.815 | D12: 11.58 | E12: 10 | F12: 1.78 | G12: 6.85 | K12: Jun | L12: 0.7 | M12: 4.42 | N12: 0.5 | O12: 0.66
A13: Jul | B13: 60 | C13: =AVERAGE(L13,L28,L43,L58) -> 4.39 | D13: =MAX(M13,M28,M43,M58) -> 39.52 | E13: 10 | F13: =AVERAGE(N13,N28,N43,N58) -> 4.3775 | G13: =MAX(O13,O28,O43,O58) -> 9.11 | K13: Jul | L13: 5.69 | M13: 39.52 | N13: 5.74 | O13: 9.11 | Q13: Maximum: for 1/2 hourly and daily periods use the highest value across all operational combustion lines for the month
A14: Aug | B14: 60 | C14: 4.1075 | D14: 21.86 | E14: 10 | F14: 4.1225 | G14: 7.12 | K14: Aug | L14: 6.16 | M14: 21.86 | N14: 6.15 | O14: 6.73
A15: Sep | B15: 60 | C15: 4.09 | D15: 21.91 | E15: 10 | F15: 4.1025 | G15: 7.83 | K15: Sep | L15: 6.27 | M15: 21.91 | N15: 6.27 | O15: 7.03
A16: Oct | B16: 60 | C16: =AVERAGE(L16,L31,L46,L61) -> 2.7925 | D16: 16.14 | E16: 10 | F16: =AVERAGE(N16,N31,N46,N61) -> 2.8125 | G16: =MAX(O16,O31,O46,O61) -> 6.96 | K16: Oct | L16: 3.92 | M16: 9.56 | N16: 3.92 | O16: 6.72
A17: Nov | B17: 60 | C17: =AVERAGE(L17,L32,L47,L62) -> 2.96 | D17: 15.38 | E17: 10 | F17: =AVERAGE(N17,N32,N47,N62) -> 2.96 | G17: =MAX(O17,O32,O47,O62) -> 6.84 | K17: Nov | L17: 5.67 | M17: 11.25 | N17: 5.66 | O17: 6.48
A18: Dec | B18: 60 | C18: =AVERAGE(L18,L33,L48,L63) -> 3.015 | D18: 43.15 | E18: 10 | F18: =AVERAGE(N18,N33,N48,N63) -> 3.01 | G18: 7.57 | K18: Dec | L18: 5.23 | M18: 12.01 | N18: 5.23 | O18: 6.69
K19: Annual | L19: =AVERAGE(L7:L18) -> 3.095833333 | M19: =MAX(M7:M18) -> 39.52 | N19: =AVERAGE(N7:N18) -> 3.078333333 | O19: =MAX(O7:O18) -> 9.11
J21: =+A6 -> 2022 | K21: mg/Nm3 | L21: Monthly 1/2 hourly mean | M21: Monthly 1/2 hourly maximum | N21: Monthly daily mean | O21: Monthly daily maximum
J22: A2 | K22: Jan | L22: 0.01 | M22: 0.67 | N22: 0.01 | O22: 0.04
K23: Feb | L23: 0 | M23: 0.11 | N23: 0 | O23: 0.02
K24: Mar | L24: 0.03 | M24: 3.6 | N24: 0.03 | O24: 0.3
K25: Apr | L25: 0.17 | M25: 5.3 | N25: 0.17 | O25: 1.9
K26: May | L26: 0.07 | M26: 3.96 | N26: 0.07 | O26: 0.85
K27: Jun | L27: 0.15 | M27: 4.61 | N27: 0.14 | O27: 1.21
K28: Jul | L28: 0.1 | M28: 7.98 | N28: 0.01 | O28: 0.04
K29: Aug | L29: 0 | M29: 0.68 | N29: 0 | O29: 0.09
K30: Sep | L30: 0.09 | M30: 8.18 | N30: 0.09 | O30: 1.55
K31: Oct | L31: 0.25 | M31: 16.14 | N31: 0.25 | O31: 1.82
K32: Nov | L32: 0.88 | M32: 10.72 | N32: 0.89 | O32: 6.84
K33: Dec | L33: 1.09 | M33: 11.96 | N33: 1.09 | O33: 6.07
K34: Annual | L34: =AVERAGE(L22:L33) -> 0.2366666667 | M34: =MAX(M22:M33) -> 16.14 | N34: =AVERAGE(N22:N33) -> 0.2291666667 | O34: =MAX(O22:O33) -> 6.84
J36: =+A6 -> 2022 | K36: mg/Nm3 | L36: Monthly 1/2 hourly mean | M36: Monthly 1/2 hourly maximum | N36: Monthly daily mean | O36: Monthly daily maximum
J37: A3 | K37: Jan | L37: 1.34 | M37: 9.36 | N37: 1.36 | O37: 3.23
K38: Feb | L38: 0.07 | M38: 1.19 | N38: 0.06 | O38: 0.23
K39: Mar | L39: 0.35 | M39: 9.58 | N39: 0.34 | O39: 1.44
K40: Apr | L40: 1.46 | M40: 32.42 | N40: 1.49 | O40: 8.01
K41: May | L41: 1.11 | M41: 9.7 | N41: 1.14 | O41: 5.14
K42: Jun | L42: 4.31 | M42: 11.39 | N42: 4.39 | O42: 6.78
K43: Jul | L43: 5.99 | M43: 23.52 | N43: 5.99 | O43: 7.11
K44: Aug | L44: 5.56 | M44: 13.08 | N44: 5.56 | O44: 6.98
K45: Sep | L45: 4.78 | M45: 15.22 | N45: 4.8 | O45: 6.98
K46: Oct | L46: 3.02 | M46: 12.72 | N46: 3.02 | O46: 6.67
K47: Nov | L47: 2.19 | M47: 15.38 | N47: 2.19 | O47: 5.07
A48: Comments : | K48: Dec | L48: 3.82 | M48: 13.19 | N48: 3.82 | O48: 6.34
K49: Annual | L49: =AVERAGE(L37:L48) -> 2.833333333 | M49: =MAX(M37:M48) -> 32.42 | N49: =AVERAGE(N37:N48) -> 2.846666667 | O49: =MAX(O37:O48) -> 8.01
J51: =+A6 -> 2022 | K51: mg/Nm3 | L51: Monthly 1/2 hourly mean | M51: Monthly 1/2 hourly maximum | N51: Monthly daily mean | O51: Monthly daily maximum
J52: A4 | K52: Jan | L52: 0.23 | M52: 6.31 | N52: 0.23 | O52: 2.05
K53: Feb | L53: 0.55 | M53: 9.23 | N53: 0.42 | O53: 3.43
K54: Mar | L54: 0.23 | M54: 11.09 | N54: 0.24 | O54: 1.1
K55: Apr | L55: 0.55 | M55: 8.24 | N55: 0.55 | O55: 3.44
K56: May | L56: 0.14 | M56: 5.67 | N56: 0.14 | O56: 0.84
K57: Jun | L57: 2.1 | M57: 11.58 | N57: 2.09 | O57: 6.85
K58: Jul | L58: 5.78 | M58: 15.61 | N58: 5.77 | O58: 7.24
K59: Aug | L59: 4.71 | M59: 13.58 | N59: 4.78 | O59: 7.12
K60: Sep | L60: 5.22 | M60: 15.19 | N60: 5.25 | O60: 7.83
K61: Oct | L61: 3.98 | M61: 13 | N61: 4.06 | O61: 6.96
K62: Nov | L62: 3.1 | M62: 13.02 | N62: 3.1 | O62: 6.24
K63: Dec | L63: 1.92 | M63: 43.15 | N63: 1.9 | O63: 7.57
K64: Annual | L64: =AVERAGE(L52:L63) -> 2.375833333 | M64: =MAX(M52:M63) -> 43.15 | N64: =AVERAGE(N52:N63) -> 2.3775 | O64: =MAX(O52:O63) -> 7.83

Sheet SO2
A1: =+'Cover Page'!$B$29 -> Annual Performance Report 2022 | E1: =+'Cover Page'!$B$33 -> Runcorn Energy From Waste Facility
A3: Monitoring of Sulphur dioxide emissions | D3: Whole Installation | G3: See Notes in Cell Q3 | J3: =+A3 -> Monitoring of Sulphur dioxide emissions | N3: Per Combustion Line | Q3: Notes:
Q4: User to add logic to complete Whole installation, Table A5:G18. From the data in Per Combustion Line, Table J6:O64, subject to No. of lines installed
A5: mg/Nm3 | B5: 1/2 Hourly Reference Periods | E5: Daily Reference Periods
A6: =+'Cover Page'!C39 -> 2022 | B6: 1/2 hourly SO2 ELV | C6: Monthly 1/2 hourly mean | D6: Highest 1/2 hourly maximum | E6: Daily SO2 ELV | F6: Monthly daily mean | G6: Highest daily maximum | J6: =+A6 -> 2022 | K6: mg/Nm3 | L6: Monthly 1/2 hourly mean | M6: Monthly 1/2 hourly maximum | N6: Monthly daily mean | O6: Monthly daily maximum
A7: Jan | B7: 200 | C7: =AVERAGE(L7,L22,L37,L52) -> 8.1575 | D7: =MAX(M7,M22,M37,M52) -> 63.11 | E7: 50 | F7: =AVERAGE(N7,N22,N37,N52) -> 8.175 | G7: =MAX(O7,O22,O37,O52) -> 20.38 | J7: A1 | K7: Jan | L7: 4.92 | M7: 50.8 | N7: 4.86 | O7: 12.2
A8: Feb | B8: 200 | C8: =AVERAGE(N7,L23,L38,L53) -> 9.4375 | D8: =MAX(O7,M23,M38,M53) -> 60.63 | E8: 50 | F8: =AVERAGE(N8,N23,N38,N53) -> 10.8475 | G8: =MAX(O8,O23,O38,O53) -> 22.23 | K8: Feb | L8: 10.43 | M8: 79.47 | N8: 10.53 | O8: 15.54
A9: Mar | B9: 200 | C9: =AVERAGE(L9,L24,L39,L54) -> 13.3575 | D9: =MAX(M9,M24,M39,M54) -> 236.97 | E9: 50 | F9: =AVERAGE(N9,N24,N39,N54) -> 12.8875 | G9: 24.4 | K9: Mar | L9: 13.05 | M9: 236.97 | N9: 13.05 | O9: 17.2 | Q9: Whole Installation table A5:G18:
A10: Apr | B10: 200 | C10: =AVERAGE(L10,L25,L40,L55) -> 13.885 | D10: =MAX(M10,M25,M40,M55) -> 137.25 | E10: 50 | F10: =AVERAGE(N10,N25,N40,N55) -> 14.0725 | G10: =MAX(O10,O25,O40,O55) -> 46.02 | K10: Apr | L10: 14.88 | M10: 48.93 | N10: 14.88 | O10: 18.03 | Q10: Mean: for 1/2 hourly and daily periods calculate mean of values across all operational combustion lines for the month
A11: May | B11: 200 | C11: 13.225 | D11: 81.18 | E11: 50 | F11: 13.3225 | G11: 37.59 | K11: May | L11: 12.91 | M11: 61.1 | N11: 13.28 | O11: 22.26
A12: Jun | B12: 200 | C12: 17.265 | D12: 66.57 | E12: 50 | F12: 17.165 | G12: 39.34 | K12: Jun | L12: 2.35 | M12: 10.59 | N12: 2.14 | O12: 3.01
A13: Jul | B13: 200 | C13: =AVERAGE(L13,L28,L43,L58) -> 17.76 | D13: =MAX(M13,M28,M43,M58) -> 94.99 | E13: 50 | F13: =AVERAGE(N13,N28,N43,N58) -> 17.5975 | G13: =MAX(O13,O28,O43,O58) -> 36.91 | K13: Jul | L13: 10.7 | M13: 94.99 | N13: 10.57 | O13: 16.39 | Q13: Maximum: for 1/2 hourly and daily periods use the highest value across all operational combustion lines for the month
A14: Aug | B14: 200 | C14: 22.15 | D14: 111.87 | E14: 50 | F14: 22.3175 | G14: 38.86 | K14: Aug | L14: 25.03 | M14: 63.84 | N14: 25.36 | O14: 31.07
A15: Sep | B15: 200 | C15: 23.28 | D15: 74.17 | E15: 50 | F15: 23.355 | G15: 39.93 | K15: Sep | L15: 24.08 | M15: 56.9 | N15: 24.08 | O15: 32.8
A16: Oct | B16: 200 | C16: =AVERAGE(L16,L31,L46,L61) -> 20.985 | D16: =MAX(M16,M31,M46,M61) -> 54.49 | E16: 50 | F16: =AVERAGE(N16,N31,N46,N61) -> 21.075 | G16: =MAX(O16,O31,O46,O61) -> 37.35 | K16: Oct | L16: 21.14 | M16: 42.02 | N16: 21.14 | O16: 30.1
A17: Nov | B17: 200 | C17: =AVERAGE(N16,L32,L47,L62) -> 20.38 | D17: =MAX(O16,M32,M47,M62) -> 65.08 | E17: 50 | F17: =AVERAGE(N17,N32,N47,N62) -> 19.65 | G17: =MAX(O17,O32,O47,O62) -> 37.57 | K17: Nov | L17: 18.21 | M17: 40.83 | N17: 18.28 | O17: 24.59
A18: Dec | B18: 200 | C18: =AVERAGE(L18,L33,L48,L63) -> 19.1 | D18: =MAX(M18,M33,M48,M63) -> 101.34 | E18: 50 | F18: =AVERAGE(N18,N33,N48,N63) -> 19.1 | G18: 36.99 | K18: Dec | L18: 16.91 | M18: 78.74 | N18: 16.91 | O18: 22.76
K19: Annual | L19: =AVERAGE(L7:L18) -> 14.55083333 | M19: =MAX(M7:M18) -> 236.97 | N19: =AVERAGE(N7:N18) -> 14.59 | O19: =MAX(O7:O18) -> 32.8
J21: =+A6 -> 2022 | K21: mg/Nm3 | L21: Monthly 1/2 hourly mean | M21: Monthly 1/2 hourly maximum | N21: Monthly daily mean | O21: Monthly daily maximum
J22: A2 | K22: Jan | L22: 1.2 | M22: 63.11 | N22: 1.19 | O22: 4.66
K23: Feb | L23: 1.28 | M23: 60.63 | N23: 1.28 | O23: 3.88
K24: Mar | L24: 4.71 | M24: 88.41 | N24: 4.73 | O24: 13.45
K25: Apr | L25: 3.97 | M25: 26.01 | N25: 3.95 | O25: 12.78
K26: May | L26: 5.99 | M26: 57.67 | N26: 6.02 | O26: 15.92
K27: Jun | L27: 5.74 | M27: 66.37 | N27: 5.32 | O27: 29.56
K28: Jul | L28: 3.32 | M28: 40 | N28: 2.8 | O28: 7.78
K29: Aug | L29: 1.8 | M29: 42.79 | N29: 1.8 | O29: 12.29
K30: Sep | L30: 2.82 | M30: 68.98 | N30: 2.82 | O30: 13.16
K31: Oct | L31: 9.79 | M31: 52.03 | N31: 9.79 | O31: 21.05
K32: Nov | L32: 5.66 | M32: 49.33 | N32: 5.6 | O32: 22.21
K33: Dec | L33: 8.39 | M33: 58.31 | N33: 8.39 | O33: 23.6
K34: Annual | L34: =AVERAGE(L22:L33) -> 4.555833333 | M34: =MAX(M22:M33) -> 88.41 | N34: =AVERAGE(N22:N33) -> 4.474166667 | O34: =MAX(O22:O33) -> 29.56
J36: =+A6 -> 2022 | K36: mg/Nm3 | L36: Monthly 1/2 hourly mean | M36: Monthly 1/2 hourly maximum | N36: Monthly daily mean | O36: Monthly daily maximum
J37: A3 | K37: Jan | L37: 14.19 | M37: 52.25 | N37: 14.33 | O37: 19.95
K38: Feb | L38: 15.28 | M38: 54.98 | N38: 15.27 | O38: 20.04
K39: Mar | L39: 19.93 | M39: 109.95 | N39: 18.02 | O39: 23.69
K40: Apr | L40: 18.4 | M40: 137.25 | N40: 19.1 | O40: 46.02
K41: May | L41: 17.22 | M41: 81.18 | N41: 17.29 | O41: 37.59
K42: Jun | L42: 33.44 | M42: 66.57 | N42: 33.4 | O42: 39.34
K43: Jul | L43: 27.38 | M43: 71.78 | N43: 27.38 | O43: 32.36
K44: Aug | L44: 30.15 | M44: 111.87 | N44: 30.14 | O44: 35.78
K45: Sep | L45: 30.58 | M45: 72.91 | N45: 30.73 | O45: 36.58
K46: Oct | L46: 24.59 | M46: 53.73 | N46: 24.6 | O46: 36.3
K47: Nov | L47: 25.16 | M47: 65.08 | N47: 25.16 | O47: 35.14
A48: Comments : | K48: Dec | L48: 25.7 | M48: 76.15 | N48: 25.69 | O48: 34.57
A49: 1 x SO2 half hourly exceedance - see permit compliance section for details. | K49: Annual | L49: =AVERAGE(L37:L48) -> 23.50166667 | M49: =MAX(M37:M48) -> 137.25 | N49: =AVERAGE(N37:N48) -> 23.42583333 | O49: =MAX(O37:O48) -> 46.02
J51: =+A6 -> 2022 | K51: mg/Nm3 | L51: Monthly 1/2 hourly mean | M51: Monthly 1/2 hourly maximum | N51: Monthly daily mean | O51: Monthly daily maximum
J52: A4 | K52: Jan | L52: 12.32 | M52: 55.6 | N52: 12.32 | O52: 20.38
K53: Feb | L53: 16.33 | M53: 56.38 | N53: 16.31 | O53: 22.23
K54: Mar | L54: 15.74 | M54: 131.62 | N54: 15.75 | O54: 24.4
K55: Apr | L55: 18.29 | M55: 40.86 | N55: 18.36 | O55: 20.35
K56: May | L56: 16.78 | M56: 49.15 | N56: 16.7 | O56: 27
K57: Jun | L57: 27.53 | M57: 48.36 | N57: 27.8 | O57: 35.98
K58: Jul | L58: 29.64 | M58: 57.81 | N58: 29.64 | O58: 36.91
K59: Aug | L59: 31.62 | M59: 78.2 | N59: 31.97 | O59: 38.86
K60: Sep | L60: 35.64 | M60: 74.17 | N60: 35.79 | O60: 39.93
K61: Oct | L61: 28.42 | M61: 54.49 | N61: 28.77 | O61: 37.35
K62: Nov | L62: 29.56 | M62: 57.18 | N62: 29.56 | O62: 37.57
K63: Dec | L63: 25.4 | M63: 101.34 | N63: 25.41 | O63: 36.99
K64: Annual | L64: =AVERAGE(L52:L63) -> 23.93916667 | M64: =MAX(M52:M63) -> 131.62 | N64: =AVERAGE(N52:N63) -> 24.03166667 | O64: =MAX(O52:O63) -> 39.93

Sheet NOx
A1: =+'Cover Page'!$B$29 -> Annual Performance Report 2022 | E1: =+'Cover Page'!$B$33 -> Runcorn Energy From Waste Facility
A3: Monitoring of Oxides of Nitrogen emissions | D3: Whole Installation | G3: See Notes in Cell Q3 | J3: =+A3 -> Monitoring of Oxides of Nitrogen emissions | N3: Per Combustion Line | Q3: Notes:
Q4: User to add logic to complete Whole installation, Table A5:G18. From the data in Per Combustion Line, Table J6:O64, subject to No. of lines installed
A5: mg/Nm3 | B5: 1/2 Hourly Reference Periods | E5: Daily Reference Periods
A6: =+'Cover Page'!C39 -> 2022 | B6: 1/2 hourly NOx ELV | C6: Monthly 1/2 hourly mean | D6: Highest 1/2 hourly maximum | E6: Daily NOx ELV | F6: Monthly daily mean | G6: Highest daily maximum | J6: =+A6 -> 2022 | K6: mg/Nm3 | L6: Monthly 1/2 hourly mean | M6: Monthly 1/2 hourly maximum | N6: Monthly daily mean | O6: Monthly daily maximum
A7: Jan | B7: 400 | C7: =AVERAGE(L7,L22,L37,L52) -> 175.4125 | D7: =MAX(M7,M22,M37,M52) -> 225.4 | E7: 200 | F7: =AVERAGE(N7,N22,N37,N52) -> 175.48 | G7: =MAX(O7,O22,O37,O52) -> 181.19 | J7: A1 | K7: Jan | L7: 173.24 | M7: 219.61 | N7: 173.35 | O7: 176.36
A8: Feb | B8: 400 | C8: =AVERAGE(L8,L23,L38,L53) -> 178.5075 | D8: =MAX(M8,M23,M38,M53) -> 369.82 | E8: 200 | F8: =AVERAGE(N8,N23,N38,N53) -> 178.5825 | G8: =MAX(O8,O23,O38,O53) -> 191.7 | K8: Feb | L8: 175.46 | M8: 330.43 | N8: 175.33 | O8: 186.43
A9: Mar | B9: 400 | C9: 187.0525 | D9: 345.05 | E9: 200 | F9: 187.1975 | G9: =MAX(O9,O24,O39,O54) -> 196.82 | K9: Mar | L9: 184.18 | M9: 345.05 | N9: 184.36 | O9: 191.49 | Q9: Whole Installation table A5:G18:
A10: Apr | B10: 400 | C10: =AVERAGE(L10,L25,L40,L55) -> 183.785 | D10: =MAX(M10,M25,M40,M55) -> 251.53 | E10: 200 | F10: =AVERAGE(N10,N25,N40,N55) -> 184.36 | G10: =MAX(O10,O25,O40,O55) -> 192.24 | K10: Apr | L10: 183.91 | M10: 250.33 | N10: 183.91 | O10: 186.3 | Q10: Mean: for 1/2 hourly and daily periods calculate mean of values across all operational combustion lines for the month
A11: May | B11: 400 | C11: 183.08 | D11: 312.39 | E11: 200 | F11: 183.5425 | G11: 199.31 | K11: May | L11: 183.17 | M11: 248.25 | N11: 183.82 | O11: 184.61
A12: Jun | B12: 400 | C12: 185.125 | D12: 273.54 | E12: 200 | F12: 185.4925 | G12: 192.17 | K12: Jun | L12: 182.84 | M12: 198.89 | N12: 183.28 | O12: 183.39
A13: Jul | B13: 400 | C13: =AVERAGE(L13,L28,L43,L58) -> 186.15 | D13: =MAX(M13,M28,M43,M58) -> 314.66 | E13: 200 | F13: =AVERAGE(N13,N28,N43,N58) -> 186.7625 | G13: =MAX(O13,O28,O43,O58) -> 193.97 | K13: Jul | L13: 183.19 | M13: 279.72 | N13: 183.32 | O13: 183.96 | Q13: Maximum: for 1/2 hourly and daily periods use the highest value across all operational combustion lines for the month
A14: Aug | B14: 400 | C14: 186.7925 | D14: 278.96 | E14: 200 | F14: 187.1675 | G14: 195.63 | K14: Aug | L14: 183.4 | M14: 249.9 | N14: 183.7 | O14: 185.05
A15: Sep | B15: 400 | C15: 187.2625 | D15: 347.55 | E15: 200 | F15: 187.345 | G15: 194.78 | K15: Sep | L15: 183.9 | M15: 347.55 | N15: 183.9 | O15: 188.07
A16: Oct | B16: 400 | C16: =AVERAGE(L16,L31,L46,L61) -> 186.65 | D16: =MAX(M16,M31,M46,M61) -> 380.44 | E16: 200 | F16: =AVERAGE(N16,N31,N46,N61) -> 186.7275 | G16: =MAX(O16,O31,O46,O61) -> 195.66 | K16: Oct | L16: 184.02 | M16: 325.12 | N16: 184.02 | O16: 190.2
A17: Nov | B17: 400 | C17: =AVERAGE(L17,L32,L47,L62) -> 187.64 | D17: =MAX(M17,M32,M47,M62) -> 276.09 | E17: 200 | F17: =AVERAGE(N17,N32,N47,N62) -> 187.6375 | G17: =MAX(O17,O32,O47,O62) -> 194.84 | K17: Nov | L17: 184.59 | M17: 208.11 | N17: 184.6 | O17: 187.98
A18: Dec | B18: 400 | C18: 188.8725 | D18: 349.3 | E18: 200 | F18: 188.8725 | G18: =MAX(O18,O33,O48,O63) -> 198.65 | K18: Dec | L18: 188.88 | M18: 318.76 | N18: 188.87 | O18: 194.44
K19: Annual | L19: =AVERAGE(L7:L18) -> 182.565 | M19: =MAX(M7:M18) -> 347.55 | N19: =AVERAGE(N7:N18) -> 182.705 | O19: =MAX(O7:O18) -> 194.44
J21: =+A6 -> 2022 | K21: mg/Nm3 | L21: Monthly 1/2 hourly mean | M21: Monthly 1/2 hourly maximum | N21: Monthly daily mean | O21: Monthly daily maximum
J22: A2 | K22: Jan | L22: 171.47 | M22: 225.4 | N22: 171.51 | O22: 174.54
K23: Feb | L23: 174.43 | M23: 340.02 | N23: 174.43 | O23: 186.46
K24: Mar | L24: 183.38 | M24: 321.53 | N24: 183.38 | O24: 191.61
K25: Apr | L25: 182.18 | M25: 213.58 | N25: 182.16 | O25: 183.7
K26: May | L26: 183.24 | M26: 312.39 | N26: 183.24 | O26: 199.31
K27: Jun | L27: 182.13 | M27: 194.61 | N27: 182.25 | O27: 183.15
K28: Jul | L28: 180.58 | M28: 299.27 | N28: 182.9 | O28: 193.97
K29: Aug | L29: 182.89 | M29: 278.96 | N29: 182.89 | O29: 189.69
K30: Sep | L30: 183.06 | M30: 293.49 | N30: 183.06 | O30: 187
K31: Oct | L31: 182.13 | M31: 380.44 | N31: 182.13 | O31: 188.48
K32: Nov | L32: 182.34 | M32: 213.81 | N32: 182.32 | O32: 183.46
K33: Dec | L33: 183.22 | M33: 291.19 | N33: 183.22 | O33: 186.1
K34: Annual | L34: =AVERAGE(L22:L33) -> 180.9208333 | M34: =MAX(M22:M33) -> 380.44 | N34: =AVERAGE(N22:N33) -> 181.1241667 | O34: =MAX(O22:O33) -> 199.31
J36: =+A6 -> 2022 | K36: mg/Nm3 | L36: Monthly 1/2 hourly mean | M36: Monthly 1/2 hourly maximum | N36: Monthly daily mean | O36: Monthly daily maximum
J37: A3 | K37: Jan | L37: 178.21 | M37: 213.61 | N37: 178.33 | O37: 181.19
K38: Feb | L38: 182.06 | M38: 257.64 | N38: 182.32 | O38: 191.7
K39: Mar | L39: 190.71 | M39: 263.96 | N39: 190.88 | O39: 194.09
K40: Apr | L40: 178.9 | M40: 251.53 | N40: 181.23 | O40: 192.15
K41: May | L41: 186.87 | M41: 247.37 | N41: 187.42 | O41: 192.75
K42: Jun | L42: 190.82 | M42: 273.54 | N42: 191.22 | O42: 192.17
K43: Jul | L43: 190.49 | M43: 262.44 | N43: 190.49 | O43: 191.99
K44: Aug | L44: 190.88 | M44: 268.67 | N44: 190.88 | O44: 192.27
K45: Sep | L45: 191.16 | M45: 333.69 | N45: 191.34 | O45: 194.78
K46: Oct | L46: 191.4 | M46: 334.03 | N46: 191.4 | O46: 195.66
K47: Nov | L47: 191.89 | M47: 276.09 | N47: 191.89 | O47: 193.44
A48: Comments : | K48: Dec | L48: 192.01 | M48: 349.3 | N48: 192 | O48: 198.65
K49: Annual | L49: =AVERAGE(L37:L48) -> 187.95 | M49: =MAX(M37:M48) -> 349.3 | N49: =AVERAGE(N37:N48) -> 188.2833333 | O49: =MAX(O37:O48) -> 198.65
J51: =+A6 -> 2022 | K51: mg/Nm3 | L51: Monthly 1/2 hourly mean | M51: Monthly 1/2 hourly maximum | N51: Monthly daily mean | O51: Monthly daily maximum
J52: A4 | K52: Jan | L52: 178.73 | M52: 181.19 | N52: 178.73 | O52: 181.19
K53: Feb | L53: 182.08 | M53: 369.82 | N53: 182.25 | O53: 191.47
K54: Mar | L54: 189.94 | M54: 295.24 | N54: 190.17 | O54: 196.82
K55: Apr | L55: 190.15 | M55: 239.4 | N55: 190.14 | O55: 192.24
K56: May | L56: 179.04 | M56: 209.43 | N56: 179.69 | O56: 189.46
K57: Jun | L57: 184.71 | M57: 246.42 | N57: 185.22 | O57: 191.01
K58: Jul | L58: 190.34 | M58: 314.66 | N58: 190.34 | O58: 192.29
K59: Aug | L59: 190 | M59: 253.8 | N59: 191.2 | O59: 195.63
K60: Sep | L60: 190.93 | M60: 234.45 | N60: 191.08 | O60: 192.34
K61: Oct | L61: 189.05 | M61: 378.52 | N61: 189.36 | O61: 195.48
K62: Nov | L62: 191.74 | M62: 247.95 | N62: 191.74 | O62: 194.84
K63: Dec | L63: 191.38 | M63: 287.99 | N63: 191.4 | O63: 193.24
K64: Annual | L64: =AVERAGE(L52:L63) -> 187.3408333 | M64: =MAX(M52:M63) -> 378.52 | N64: =AVERAGE(N52:N63) -> 187.61 | O64: =MAX(O52:O63) -> 196.82

Sheet TOC
A1: =+'Cover Page'!$B$29 -> Annual Performance Report 2022 | E1: =+'Cover Page'!$B$33 -> Runcorn Energy From Waste Facility
A3: Monitoring of Total organic carbon emissions | D3: Whole Installation | G3: See Notes in Cell Q3 | J3: =+A3 -> Monitoring of Total organic carbon emissions | N3: Per Combustion Line | Q3: Notes:
Q4: User to add logic to complete Whole installation, Table A5:G18. From the data in Per Combustion Line, Table J6:O64, subject to No. of lines installed
A5: mg/Nm3 | B5: 1/2 Hourly Reference Periods | E5: Daily Reference Periods
A6: =+'Cover Page'!C39 -> 2022 | B6: 1/2 hourly TOC ELV | C6: Monthly 1/2 hourly mean | D6: Highest 1/2 hourly maximum | E6: Daily TOC ELV | F6: Monthly daily mean | G6: Highest daily maximum | J6: =+A6 -> 2022 | K6: mg/Nm3 | L6: Monthly 1/2 hourly mean | M6: Monthly 1/2 hourly maximum | N6: Monthly daily mean | O6: Monthly daily maximum
A7: Jan | B7: 20 | C7: =AVERAGE(L7,L22,L37,L52) -> 0.0025 | D7: =MAX(M7,M22,M37,M52) -> 3.43 | E7: 10 | F7: =AVERAGE(N7,N22,N37,N52) -> 0.0025 | G7: =MAX(O7,O22,O37,O52) -> 0.07 | J7: A1 | K7: Jan | L7: 0 | M7: 0.58 | N7: 0 | O7: 0.06
A8: Feb | B8: 20 | C8: =AVERAGE(L8,L23,L38,L53) -> 0 | D8: =MAX(M8,M23,M38,M53) -> 1.54 | E8: 10 | F8: =AVERAGE(N8,N23,N38,N53) -> 0.0025 | G8: =MAX(O8,O23,O38,O53) -> 0.05 | K8: Feb | L8: 0 | M8: 1.16 | N8: 0 | O8: 0.03
A9: Mar | B9: 20 | C9: =AVERAGE(L9,L24,L39,L54) -> 0.015 | D9: 4.85 | E9: 10 | F9: 0.0075 | G9: =MAX(O9,O24,O39,O54) -> 0.47 | K9: Mar | L9: 0.05 | M9: 4.85 | N9: 0.02 | O9: 0.47 | Q9: Whole Installation table A5:G18:
A10: Apr | B10: 20 | C10: =AVERAGE(L10,L25,L40,L55) -> 0.005 | D10: =MAX(M10,M25,M40,M55) -> 14.06 | E10: 10 | F10: =AVERAGE(N10,N25,N40,N55) -> 0.005 | G10: =MAX(O10,O25,O40,O55) -> 0.35 | K10: Apr | L10: 0.01 | M10: 1.86 | N10: 0.01 | O10: 0.06 | Q10: Mean: for 1/2 hourly and daily periods calculate mean of values across all operational combustion lines for the month
A11: May | B11: 20 | C11: 0.035 | D11: 10.1 | E11: 10 | F11: 0.035 | G11: 1.11 | K11: May | L11: 0 | M11: 0.66 | N11: 0 | O11: 0.01
A12: Jun | B12: 20 | C12: 0.0225 | D12: 10.45 | E12: 10 | F12: 0.0025 | G12: 0.1 | K12: Jun | L12: 0.05 | M12: 10.45 | N12: 0 | O12: 0
A13: Jul | B13: 20 | C13: =AVERAGE(L13,L28,L43,L58) -> 0.0175 | D13: =MAX(M13,M28,M43,M58) -> 5.18 | E13: 10 | F13: =AVERAGE(N13,N28,N43,N58) -> 0.0075 | G13: =MAX(O13,O28,O43,O58) -> 0.1 | K13: Jul | L13: 0.05 | M13: 5.18 | N13: 0.02 | O13: 0.1 | Q13: Maximum: for 1/2 hourly and daily periods use the highest value across all operational combustion lines for the month
A14: Aug | B14: 20 | C14: 0.0075 | D14: 6.3 | E14: 10 | F14: 0.005 | G14: 0.13 | K14: Aug | L14: 0.02 | M14: 3.1 | N14: 0.01 | O14: 0.11
A15: Sep | B15: 20 | C15: 0.0025 | D15: 4.12 | E15: 10 | F15: 0.0025 | G15: 0.09 | K15: Sep | L15: 0 | M15: 0.05 | N15: 0 | O15: 0.06
A16: Oct | B16: 20 | C16: =AVERAGE(L16,L31,L46,L61) -> 0.006193680018 | D16: =MAX(M16,M31,M46,M61) -> 6.89 | E16: 10 | F16: =AVERAGE(N16,N31,N46,N61) -> 0.006193683871 | G16: =MAX(O16,O31,O46,O61) -> 0.16 | K16: Oct | L16: 0.003405801389 | M16: 0.59 | N16: 0.0034058 | O16: 0.07
A17: Nov | B17: 20 | C17: =AVERAGE(L17,L32,L47,L62) -> 0.007767275825 | D17: =MAX(M17,M32,M47,M62) -> 13.08 | E17: 10 | F17: =AVERAGE(N17,N32,N47,N62) -> 0.007767270833 | G17: =MAX(O17,O32,O47,O62) -> 0.27 | K17: Nov | L17: 0.01 | M17: 1.03 | N17: 0.01 | O17: 0.09
A18: Dec | B18: 20 | C18: =AVERAGE(L18,L33,L48,L63) -> 0.00368588521 | D18: 1.23 | E18: 10 | F18: 0.003687253616 | G18: =MAX(O18,O33,O48,O63) -> 0.08 | K18: Dec | L18: 0.01 | M18: 1.23 | N18: 0.01 | O18: 0.08
K19: Annual | L19: =AVERAGE(L7:L18) -> 0.01695048345 | M19: =MAX(M7:M18) -> 10.45 | N19: =AVERAGE(N7:N18) -> 0.006950483333 | O19: =MAX(O7:O18) -> 0.47
J21: =+A6 -> 2022 | K21: mg/Nm3 | L21: Monthly 1/2 hourly mean | M21: Monthly 1/2 hourly maximum | N21: Monthly daily mean | O21: Monthly daily maximum
J22: A2 | K22: Jan | L22: 0 | M22: 1.73 | N22: 0 | O22: 0.04
K23: Feb | L23: 0 | M23: 0.18 | N23: 0 | O23: 0.01
K24: Mar | L24: 0.01 | M24: 4.34 | N24: 0.01 | O24: 0.09
K25: Apr | L25: 0.01 | M25: 14.06 | N25: 0.01 | O25: 0.35
K26: May | L26: 0 | M26: 0.2 | N26: 0 | O26: 0
K27: Jun | L27: 0.02 | M27: 3.63 | N27: 0.01 | O27: 0.1
K28: Jul | L28: 0.02 | M28: 3.88 | N28: 0.01 | O28: 0.07
K29: Aug | L29: 0 | M29: 1.38 | N29: 0 | O29: 0.03
K30: Sep | L30: 0 | M30: 1.95 | N30: 0 | O30: 0.09
K31: Oct | L31: 0.01 | M31: 6.89 | N31: 0.01 | O31: 0.16
K32: Nov | L32: 0.02 | M32: 13.08 | N32: 0.02 | O32: 0.27
K33: Dec | L33: 0.0005295221774 | M33: 0.16 | N33: 0.000529516129 | O33: 0.02
K34: Annual | L34: =AVERAGE(L22:L33) -> 0.007544126848 | M34: =MAX(M22:M33) -> 14.06 | N34: =AVERAGE(N22:N33) -> 0.005877459677 | O34: =MAX(O22:O33) -> 0.35
J36: =+A6 -> 2022 | K36: mg/Nm3 | L36: Monthly 1/2 hourly mean | M36: Monthly 1/2 hourly maximum | N36: Monthly daily mean | O36: Monthly daily maximum
J37: A3 | K37: Jan | L37: 0.01 | M37: 3.43 | N37: 0.01 | O37: 0.07
K38: Feb | L38: 0 | M38: 1.54 | N38: 0 | O38: 0.03
K39: Mar | L39: 0 | M39: 2.39 | N39: 0 | O39: 0.05
K40: Apr | L40: 0 | M40: 0.16 | N40: 0 | O40: 0.02
K41: May | L41: 0.11 | M41: 4.4 | N41: 0.11 | O41: 1.11
K42: Jun | L42: 0.01 | M42: 6.27 | N42: 0 | O42: 0.02
K43: Jul | L43: 0 | M43: 2.32 | N43: 0 | O43: 0.05
K44: Aug | L44: 0.01 | M44: 6.3 | N44: 0.01 | O44: 0.13
K45: Sep | L45: 0 | M45: 1.64 | N45: 0 | O45: 0.03
K46: Oct | L46: 0.001368918683 | M46: 0.27 | N46: 0.001368935484 | O46: 0.02
K47: Nov | L47: 0.0006055217014 | M47: 0.13 | N47: 0.0006055 | O47: 0.01
A48: Comments : | K48: Dec | L48: 0.002582200167 | M48: 0.93 | N48: 0.00258004 | O48: 0.03
K49: Annual | L49: =AVERAGE(L37:L48) -> 0.01204638671 | M49: =MAX(M37:M48) -> 6.3 | N49: =AVERAGE(N37:N48) -> 0.01121287296 | O49: =MAX(O37:O48) -> 1.11
J51: =+A6 -> 2022 | K51: mg/Nm3 | L51: Monthly 1/2 hourly mean | M51: Monthly 1/2 hourly maximum | N51: Monthly daily mean | O51: Monthly daily maximum
J52: A4 | K52: Jan | L52: 0 | M52: 0.32 | N52: 0 | O52: 0.04
K53: Feb | L53: 0 | M53: 1.44 | N53: 0.01 | O53: 0.05
K54: Mar | L54: 0 | M54: 0.37 | N54: 0 | O54: 0.03
K55: Apr | L55: 0 | M55: 0.59 | N55: 0 | O55: 0.02
K56: May | L56: 0.03 | M56: 10.1 | N56: 0.03 | O56: 0.26
K57: Jun | L57: 0.01 | M57: 3.7 | N57: 0 | O57: 0.02
K58: Jul | L58: 0 | M58: 0.56 | N58: 0 | O58: 0.02
K59: Aug | L59: 0 | M59: 1.08 | N59: 0 | O59: 0.02
K60: Sep | L60: 0.01 | M60: 4.12 | N60: 0.01 | O60: 0.09
K61: Oct | L61: 0.01 | M61: 6.45 | N61: 0.01 | O61: 0.16
K62: Nov | L62: 0.0004635815972 | M62: 0.2 | N62: 0.0004635833333 | O62: 0.00422
K63: Dec | L63: 0.001631818496 | M63: 0.89 | N63: 0.001639458333 | O63: 0.02
K64: Annual | L64: =AVERAGE(L52:L63) -> 0.005174616674 | M64: =MAX(M52:M63) -> 10.1 | N64: =AVERAGE(N52:N63) -> 0.005175253472 | O64: =MAX(O52:O63) -> 0.26

Sheet NH3
A1: =+'Cover Page'!$B$29 -> Annual Performance Report 2022 | E1: =+'Cover Page'!$B$33 -> Runcorn Energy From Waste Facility
A3: Monitoring of Ammnonia emissions | D3: Whole Installation | G3: See Notes in Cell Q3 | J3: =+A3 -> Monitoring of Ammnonia emissions | N3: Per Combustion Line | Q3: Notes:
Q4: User to add logic to complete Whole installation, Table A5:G18. From the data in Per Combustion Line, Table J6:O64, subject to No. of lines installed
A5: mg/Nm3 | B5: 1/2 Hourly Reference Periods | E5: Daily Reference Periods
A6: =+'Cover Page'!C39 -> 2022 | B6: 1/2 hourly NH3 ELV | C6: Monthly 1/2 hourly mean | D6: Highest 1/2 hourly maximum | E6: Daily NH3 ELV | F6: Monthly daily mean | G6: Highest daily maximum | J6: =+A6 -> 2022 | K6: mg/Nm3 | L6: Monthly 1/2 hourly mean | M6: Monthly 1/2 hourly maximum | N6: Monthly daily mean | O6: Monthly daily maximum
A7: Jan | B7: 0 | C7: =AVERAGE(L7,L22,L37,L52) -> 0.905 | D7: =MAX(M7,M22,M37,M52) -> 4.81 | E7: 10 | F7: =AVERAGE(N7,N22,N37,N52) -> 0.905 | G7: =MAX(O7,O22,O37,O52) -> 1.76 | J7: A1 | K7: Jan | L7: 1.21 | M7: 2.84 | N7: 1.21 | O7: 1.76
A8: Feb | B8: =+B7 -> 0 | C8: =AVERAGE(L8,L23,L38,L53) -> 1.005 | D8: =MAX(M8,M23,M38,M53) -> 5.68 | E8: =+E7 -> 10 | F8: =AVERAGE(N8,N23,N38,N53) -> 0.9725 | G8: =MAX(O8,O23,O38,O53) -> 2.73 | K8: Feb | L8: 1.24 | M8: 5.68 | N8: 1.23 | O8: 2.06
A9: Mar | B9: =+B8 -> 0 | C9: 0.7725 | D9: 4.86 | E9: =+E8 -> 10 | F9: 0.7725 | G9: 1.68 | K9: Mar | L9: 1.19 | M9: 2.8 | N9: 1.19 | O9: 1.68 | Q9: Whole Installation table A5:G18:
A10: Apr | B10: 0 | C10: =AVERAGE(L10,L25,L40,L55) -> 0.815 | D10: =MAX(M10,M25,M40,M55) -> 10.18 | E10: 10 | F10: =AVERAGE(N10,N25,N40,N55) -> 0.8125 | G10: =MAX(O10,O25,O40,O55) -> 1.71 | K10: Apr | L10: 1.36 | M10: 3.03 | N10: 1.36 | O10: 1.71 | Q10: Mean: for 1/2 hourly and daily periods calculate mean of values across all operational combustion lines for the month
A11: May | B11: 0 | C11: 0.8775 | D11: 9.71 | E11: 10 | F11: 0.8425 | G11: 6.16 | K11: May | L11: 1.13 | M11: 2.69 | N11: 1.11 | O11: 1.45
A12: Jun | B12: 0 | C12: 0.885 | D12: 12.91 | E12: 10 | F12: 0.865 | G12: 2.07 | K12: Jun | L12: 1.86 | M12: 3.42 | N12: 1.84 | O12: 2.07
A13: Jul | B13: 0 | C13: =AVERAGE(L13,L28,L43,L58) -> 0.9475 | D13: =MAX(M13,M28,M43,M58) -> 3.81 | E13: 10 | F13: =AVERAGE(N13,N28,N43,N58) -> 0.94 | G13: =MAX(O13,O28,O43,O58) -> 1.8 | K13: Jul | L13: 1.38 | M13: 3.81 | N13: 1.36 | O13: 1.8 | Q13: Maximum: for 1/2 hourly and daily periods use the highest value across all operational combustion lines for the month
A14: Aug | B14: 0 | C14: 0.885 | D14: 4.95 | E14: 10 | F14: 0.8775 | G14: 1.8 | K14: Aug | L14: 1.39 | M14: 4.95 | N14: 1.36 | O14: 1.8
A15: Sep | B15: 0 | C15: 0.85 | D15: 5.29 | E15: 10 | F15: 0.8475 | G15: 2.59 | K15: Sep | L15: 1.41 | M15: 5.29 | N15: 1.41 | O15: 2.59
A16: Oct | B16: 0 | C16: =AVERAGE(L16,L31,L46,L61) -> 0.8475 | D16: =MAX(M16,M31,M46,M61) -> 8.67 | E16: 10 | F16: =AVERAGE(N16,N31,N46,N61) -> 0.845 | G16: =MAX(O16,O31,O46,O61) -> 1.92 | K16: Oct | L16: 1.17 | M16: 1.73 | N16: 1.17 | O16: 1.35
A17: Nov | B17: 0 | C17: =AVERAGE(L17,L32,L47,L62) -> 0.8975 | D17: =MAX(M17,M32,M47,M62) -> 2.38 | E17: 10 | F17: =AVERAGE(N17,N32,N47,N62) -> 0.8975 | G17: =MAX(O17,O32,O47,O62) -> 1.91 | K17: Nov | L17: 1.27 | M17: 2.38 | N17: 1.27 | O17: 1.91
A18: Dec | B18: 0 | C18: 1.14 | D18: 8 | E18: 10 | F18: 1.14 | G18: 3.29 | K18: Dec | L18: 2.57 | M18: 8 | N18: 2.57 | O18: 3.29
K19: Annual | L19: =AVERAGE(L7:L18) -> 1.431666667 | M19: =MAX(M7:M18) -> 8 | N19: =AVERAGE(N7:N18) -> 1.423333333 | O19: =MAX(O7:O18) -> 3.29
J21: =+A6 -> 2022 | K21: mg/Nm3 | L21: Monthly 1/2 hourly mean | M21: Monthly 1/2 hourly maximum | N21: Monthly daily mean | O21: Monthly daily maximum
J22: A2 | K22: Jan | L22: 1 | M22: 4.81 | N22: 1 | O22: 1.41
K23: Feb | L23: 0.84 | M23: 3.48 | N23: 0.84 | O23: 1.14
K24: Mar | L24: 0.55 | M24: 1.34 | N24: 0.55 | O24: 0.69
K25: Apr | L25: 0.55 | M25: 10.18 | N25: 0.55 | O25: 0.93
K26: May | L26: 0.47 | M26: 0.89 | N26: 0.47 | O26: 0.62
K27: Jun | L27: 0.51 | M27: 2.36 | N27: 0.5 | O27: 0.62
K28: Jul | L28: 1.22 | M28: 2.54 | N28: 1.21 | O28: 1.6
K29: Aug | L29: 0.93 | M29: 1.38 | N29: 0.93 | O29: 1.16
K30: Sep | L30: 0.68 | M30: 1.34 | N30: 0.68 | O30: 0.77
K31: Oct | L31: 0.82 | M31: 1.53 | N31: 0.82 | O31: 1.01
K32: Nov | L32: 0.82 | M32: 1.84 | N32: 0.82 | O32: 0.98
K33: Dec | L33: 0.49 | M33: 0.87 | N33: 0.49 | O33: 0.66
K34: Annual | L34: =AVERAGE(L22:L33) -> 0.74 | M34: =MAX(M22:M33) -> 10.18 | N34: =AVERAGE(N22:N33) -> 0.7383333333 | O34: =MAX(O22:O33) -> 1.6
J36: =+A6 -> 2022 | K36: mg/Nm3 | L36: Monthly 1/2 hourly mean | M36: Monthly 1/2 hourly maximum | N36: Monthly daily mean | O36: Monthly daily maximum
J37: A3 | K37: Jan | L37: 0.75 | M37: 2 | N37: 0.75 | O37: 0.87
K38: Feb | L38: 0.86 | M38: 1.8 | N38: 0.86 | O38: 1.07
K39: Mar | L39: 0.68 | M39: 1.23 | N39: 0.68 | O39: 0.82
K40: Apr | L40: 0.7 | M40: 1.48 | N40: 0.69 | O40: 0.92
K41: May | L41: 0.7 | M41: 4.9 | N41: 0.68 | O41: 1.02
K42: Jun | L42: 0.57 | M42: 10.17 | N42: 0.54 | O42: 0.57
K43: Jul | L43: 0.54 | M43: 1.04 | N43: 0.54 | O43: 0.62
K44: Aug | L44: 0.53 | M44: 0.95 | N44: 0.53 | O44: 0.56
K45: Sep | L45: 0.53 | M45: 1.34 | N45: 0.52 | O45: 0.56
K46: Oct | L46: 0.63 | M46: 2.64 | N46: 0.63 | O46: 1.27
K47: Nov | L47: 0.65 | M47: 1.7 | N47: 0.65 | O47: 0.89
A48: Comments : | K48: Dec | L48: 0.75 | M48: 1.67 | N48: 0.75 | O48: 0.97
A49: An indicated ELV value of zero in the table above means that no ammonia limit is set in the permit. | K49: Annual | L49: =AVERAGE(L37:L48) -> 0.6575 | M49: =MAX(M37:M48) -> 10.17 | N49: =AVERAGE(N37:N48) -> 0.6516666667 | O49: =MAX(O37:O48) -> 1.27
J51: =+A6 -> 2022 | K51: mg/Nm3 | L51: Monthly 1/2 hourly mean | M51: Monthly 1/2 hourly maximum | N51: Monthly daily mean | O51: Monthly daily maximum
J52: A4 | K52: Jan | L52: 0.66 | M52: 1.5 | N52: 0.66 | O52: 0.93
K53: Feb | L53: 1.08 | M53: 1.58 | N53: 0.96 | O53: 2.73
K54: Mar | L54: 0.67 | M54: 4.86 | N54: 0.67 | O54: 0.87
K55: Apr | L55: 0.65 | M55: 1.19 | N55: 0.65 | O55: 0.8
K56: May | L56: 1.21 | M56: 9.71 | N56: 1.11 | O56: 6.16
K57: Jun | L57: 0.6 | M57: 12.91 | N57: 0.58 | O57: 0.69
K58: Jul | L58: 0.65 | M58: 1.44 | N58: 0.65 | O58: 0.79
K59: Aug | L59: 0.69 | M59: 1.4 | N59: 0.69 | O59: 0.8
K60: Sep | L60: 0.78 | M60: 1.95 | N60: 0.78 | O60: 0.98
K61: Oct | L61: 0.77 | M61: 8.67 | N61: 0.76 | O61: 1.92
K62: Nov | L62: 0.85 | M62: 1.91 | N62: 0.85 | O62: 1.14
K63: Dec | L63: 0.75 | M63: 1.81 | N63: 0.75 | O63: 1.09
K64: Annual | L64: =AVERAGE(L52:L63) -> 0.78 | M64: =MAX(M52:M63) -> 12.91 | N64: =AVERAGE(N52:N63) -> 0.7591666667 | O64: =MAX(O52:O63) -> 6.16

Sheet Particulates
A1: =+'Cover Page'!$B$29 -> Annual Performance Report 2022 | E1: =+'Cover Page'!$B$33 -> Runcorn Energy From Waste Facility
A3: Monitoring of Particulate matter emissions | D3: Whole Installation | G3: See Notes in Cell Q3 | J3: =+A3 -> Monitoring of Particulate matter emissions | N3: Per Combustion Line | Q3: Notes:
Q4: User to add logic to complete Whole installation, Table A5:G18. From the data in Per Combustion Line, Table J6:O64, subject to No. of lines installed
A5: mg/Nm3 | B5: 1/2 Hourly Reference Periods | E5: Daily Reference Periods
A6: =+'Cover Page'!C39 -> 2022 | B6: 1/2 hourly PM ELV | C6: Monthly 1/2 hourly mean | D6: Highest 1/2 hourly maximum | E6: Daily PM ELV | F6: Monthly daily mean | G6: Highest daily maximum | J6: =+A6 -> 2022 | K6: mg/Nm3 | L6: Monthly 1/2 hourly mean | M6: Monthly 1/2 hourly maximum | N6: Monthly daily mean | O6: Monthly daily maximum
A7: Jan | B7: 30 | C7: =AVERAGE(L7,L22,L37,L52) -> 0.1625 | D7: =MAX(M7,M22,M37,M52) -> 1.85 | E7: 10 | F7: =AVERAGE(N7,N22,N37,N52) -> 0.1625 | G7: =MAX(O7,O22,O37,O52) -> 0.47 | J7: A1 | K7: Jan | L7: 0.01 | M7: 0.04 | N7: 0.01 | O7: 0.02
A8: Feb | B8: 30 | C8: =AVERAGE(L8,L23,L38,L53) -> 0.2625 | D8: =MAX(M8,M23,M38,M53) -> 8.77 | E8: 10 | F8: =AVERAGE(N8,N23,N38,N53) -> 0.26 | G8: =MAX(O8,O23,O38,O53) -> 0.88 | K8: Feb | L8: 0.07 | M8: 0.68 | N8: 0.06 | O8: 0.4
A9: Mar | B9: 30 | C9: 0.3775 | D9: =MAX(M9,M24,M39,M54) -> 1.72 | E9: 10 | F9: 0.375 | G9: =MAX(O9,O24,O39,O54) -> 0.64 | K9: Mar | L9: 0.34 | M9: 0.45 | N9: 0.34 | O9: 0.38 | Q9: Whole Installation table A5:G18:
A10: Apr | B10: 30 | C10: =AVERAGE(L10,L25,L40,L55) -> 0.39 | D10: =MAX(M10,M25,M40,M55) -> 1.45 | E10: 10 | F10: =AVERAGE(N10,N25,N40,N55) -> 0.3875 | G10: =MAX(O10,O25,O40,O55) -> 0.59 | K10: Apr | L10: 0.35 | M10: 0.49 | N10: 0.35 | O10: 0.39 | Q10: Mean: for 1/2 hourly and daily periods calculate mean of values across all operational combustion lines for the month
A11: May | B11: 30 | C11: 0.505 | D11: 5.1 | E11: 10 | F11: 0.5025 | G11: 1.72 | K11: May | L11: 0.35 | M11: 0.62 | N11: 0.35 | O11: 0.38
A12: Jun | B12: 30 | C12: 0.8825 | D12: 23.48 | E12: 10 | F12: 0.845 | G12: 3.46 | K12: Jun | L12: 0.43 | M12: 0.62 | N12: 0.42 | O12: 0.42
A13: Jul | B13: 30 | C13: =AVERAGE(L13,L28,L43,L58) -> 0.54 | D13: =MAX(M13,M28,M43,M58) -> 2.23 | E13: 10 | F13: =AVERAGE(N13,N28,N43,N58) -> 0.5425 | G13: =MAX(O13,O28,O43,O58) -> 1.46 | K13: Jul | L13: 0.39 | M13: 0.95 | N13: 0.39 | O13: 0.46 | Q13: Maximum: for 1/2 hourly and daily periods use the highest value across all operational combustion lines for the month
A14: Aug | B14: 30 | C14: 0.9625 | D14: 7.61 | E14: 10 | F14: 0.9575 | G14: 3.25 | K14: Aug | L14: 0.49 | M14: 1.38 | N14: 0.49 | O14: 0.7
A15: Sep | B15: 30 | C15: 1.4225 | D15: 19.67 | E15: 10 | F15: 1.4175 | G15: 6.33 | K15: Sep | L15: 0.42 | M15: 0.57 | N15: 0.42 | O15: 0.5
A16: Oct | B16: 30 | C16: =AVERAGE(L16,L31,L46,L61) -> 1.0275 | D16: =MAX(M16,M31,M46,M61) -> 8.27 | E16: 10 | F16: =AVERAGE(N16,N31,N46,N61) -> 1.0225 | G16: =MAX(O16,O31,O46,O61) -> 4.27 | K16: Oct | L16: 0.42 | M16: 0.52 | N16: 0.42 | O16: 0.46
A17: Nov | B17: 30 | C17: =AVERAGE(L17,L32,L47,L62) -> 1.7475 | D17: =MAX(M17,M32,M47,M62) -> 29.33 | E17: 10 | F17: =AVERAGE(N17,N32,N47,N62) -> 1.7475 | G17: =MAX(O17,O32,O47,O62) -> 9.49 | K17: Nov | L17: 0.39 | M17: 0.49 | N17: 0.39 | O17: 0.44
A18: Dec | B18: 30 | C18: 0.86 | D18: =MAX(M18,M33,M48,M63) -> 4.72 | E18: 10 | F18: 0.86 | G18: =MAX(O18,O33,O48,O63) -> 2.67 | K18: Dec | L18: 0.33 | M18: 0.47 | N18: 0.33 | O18: 0.38
K19: Annual | L19: =AVERAGE(L7:L18) -> 0.3325 | M19: =MAX(M7:M18) -> 1.38 | N19: =AVERAGE(N7:N18) -> 0.3308333333 | O19: =MAX(O7:O18) -> 0.7
J21: =+A6 -> 2022 | K21: mg/Nm3 | L21: Monthly 1/2 hourly mean | M21: Monthly 1/2 hourly maximum | N21: Monthly daily mean | O21: Monthly daily maximum
J22: A2 | K22: Jan | L22: 0.18 | M22: 0.88 | N22: 0.18 | O22: 0.29
K23: Feb | L23: 0.2 | M23: 0.68 | N23: 0.2 | O23: 0.3
K24: Mar | L24: 0.21 | M24: 0.9 | N24: 0.21 | O24: 0.32
K25: Apr | L25: 0.25 | M25: 1.03 | N25: 0.24 | O25: 0.36
K26: May | L26: 0.21 | M26: 0.88 | N26: 0.21 | O26: 0.3
K27: Jun | L27: 0.24 | M27: 1.13 | N27: 0.25 | O27: 0.39
K28: Jul | L28: 0.19 | M28: 0.54 | N28: 0.2 | O28: 0.36
K29: Aug | L29: 0.52 | M29: 1.25 | N29: 0.52 | O29: 0.76
K30: Sep | L30: 1.1 | M30: 4.47 | N30: 1.1 | O30: 2.43
K31: Oct | L31: 1.18 | M31: 8.27 | N31: 1.18 | O31: 4.27
K32: Nov | L32: 0.13 | M32: 1.94 | N32: 0.13 | O32: 0.99
K33: Dec | L33: 0.2 | M33: 0.91 | N33: 0.2 | O33: 0.5
K34: Annual | L34: =AVERAGE(L22:L33) -> 0.3841666667 | M34: =MAX(M22:M33) -> 8.27 | N34: =AVERAGE(N22:N33) -> 0.385 | O34: =MAX(O22:O33) -> 4.27
J36: =+A6 -> 2022 | K36: mg/Nm3 | L36: Monthly 1/2 hourly mean | M36: Monthly 1/2 hourly maximum | N36: Monthly daily mean | O36: Monthly daily maximum
J37: A3 | K37: Jan | L37: 0.03 | M37: 1.85 | N37: 0.03 | O37: 0.1
K38: Feb | L38: 0.27 | M38: 8.77 | N38: 0.27 | O38: 0.51
K39: Mar | L39: 0.47 | M39: 1.72 | N39: 0.47 | O39: 0.64
K40: Apr | L40: 0.47 | M40: 1.45 | N40: 0.47 | O40: 0.59
K41: May | L41: 1.04 | M41: 5.1 | N41: 1.04 | O41: 1.72
K42: Jun | L42: 2.36 | M42: 23.48 | N42: 2.21 | O42: 3.46
K43: Jul | L43: 0.56 | M43: 0.86 | N43: 0.56 | O43: 0.69
K44: Aug | L44: 0.62 | M44: 1.76 | N44: 0.62 | O44: 1.28
K45: Sep | L45: 1.74 | M45: 7.27 | N45: 1.74 | O45: 3.33
K46: Oct | L46: 1.22 | M46: 5.79 | N46: 1.22 | O46: 1.64
K47: Nov | L47: 4.38 | M47: 29.33 | N47: 4.38 | O47: 9.49
A48: Comments : | K48: Dec | L48: 1.48 | M48: 3.53 | N48: 1.48 | O48: 2.35
K49: Annual | L49: =AVERAGE(L37:L48) -> 1.22 | M49: =MAX(M37:M48) -> 29.33 | N49: =AVERAGE(N37:N48) -> 1.2075 | O49: =MAX(O37:O48) -> 9.49
J51: =+A6 -> 2022 | K51: mg/Nm3 | L51: Monthly 1/2 hourly mean | M51: Monthly 1/2 hourly maximum | N51: Monthly daily mean | O51: Monthly daily maximum
J52: A4 | K52: Jan | L52: 0.43 | M52: 0.77 | N52: 0.43 | O52: 0.47
K53: Feb | L53: 0.51 | M53: 0.88 | N53: 0.51 | O53: 0.88
K54: Mar | L54: 0.49 | M54: 1.17 | N54: 0.48 | O54: 0.63
K55: Apr | L55: 0.49 | M55: 0.77 | N55: 0.49 | O55: 0.56
K56: May | L56: 0.42 | M56: 1.38 | N56: 0.41 | O56: 0.54
K57: Jun | L57: 0.5 | M57: 1.71 | N57: 0.5 | O57: 0.71
K58: Jul | L58: 1.02 | M58: 2.23 | N58: 1.02 | O58: 1.46
K59: Aug | L59: 2.22 | M59: 7.61 | N59: 2.2 | O59: 3.25
K60: Sep | L60: 2.43 | M60: 19.67 | N60: 2.41 | O60: 6.33
K61: Oct | L61: 1.29 | M61: 6.41 | N61: 1.27 | O61: 1.52
K62: Nov | L62: 2.09 | M62: 4.87 | N62: 2.09 | O62: 3.06
K63: Dec | L63: 1.43 | M63: 4.72 | N63: 1.43 | O63: 2.67
K64: Annual | L64: =AVERAGE(L52:L63) -> 1.11 | M64: =MAX(M52:M63) -> 19.67 | N64: =AVERAGE(N52:N63) -> 1.103333333 | O64: =MAX(O52:O63) -> 6.33

Sheet CO 95% 10 min
A1: =+'Cover Page'!$B$29 -> Annual Performance Report 2022 | E1: =+'Cover Page'!$B$33 -> Runcorn Energy From Waste Facility
A3: Monitoring of Carbon Monoxide (10-minute avg) | E3: Whole Installation | H3: See Notes in Cell S3 | J3: =+A3 -> Monitoring of Carbon Monoxide (10-minute avg) | O3: Per Combustion Line | Q3: Notes: | S3: Notes:
S4: User to add logic to complete Whole installation, Table A5:H18. From the data in Per Combustion Line, Table K6:Q64, subject to No. of lines installed
A5: mg/Nm3 | B5: 10-minute Reference Periods | F5: Daily Reference Periods
A6: =+'Cover Page'!C39 -> 2022 | B6: 95%ile 10-min avg CO ELV | C6: 95%ile 10-min avg maximum | D6: Monthly CO 10-min avg mean | E6: 10-min avg maximum | F6: Daily CO ELV | G6: Monthly daily mean | H6: Highest daily maximum | K6: =+A6 -> 2022 | L6: mg/Nm3 | M6: 95%ile 10-min avg maximum | N6: Monthly CO 10-min avg mean | O6: 10-min avg maximum | P6: Monthly daily mean | Q6: Monthly daily maximum
A7: Jan | B7: 150 | C7: =MAX(M7,M22,M37,M52) -> 3 | D7: =AVERAGE(N7,N22,N37,N52) -> 1 | E7: =MAX(O7,O22,O37,O52) -> 300 | F7: 50 | G7: =AVERAGE(P7,P22,P37,P52) -> 1 | H7: =MAX(Q7,Q22,Q37,Q52) -> 3.1 | K7: A1 | L7: Jan | M7: 2.9 | N7: 1 | O7: 247.2 | P7: 1 | Q7: 3.1
A8: Feb | B8: =+B7 -> 150 | C8: =MAX(M8,N23,M38,M53) -> 3.7 | D8: =AVERAGE(N8,N23,N38,N53) -> 1.5 | E8: =MAX(O8,O23,O38,O53) -> 208 | F8: =+F7 -> 50 | G8: =AVERAGE(P8,P23,P38,P53) -> 1.5 | H8: =MAX(Q8,Q23,Q38,Q53) -> 4 | L8: Feb | M8: 3.7 | N8: 1 | O8: 51.6 | P8: 1 | Q8: 3.2
A9: Mar | B9: =+B8 -> 150 | C9: =MAX(M9,M24,M39,M54) -> 5.8 | D9: =AVERAGE(N9,N24,N39,N54) -> 1.5 | E9: =MAX(O9,O24,O39,O54) -> 1258 | F9: =+F8 -> 50 | G9: =AVERAGE(P9,P24,P39,P54) -> 1.5 | H9: 4.2 | L9: Mar | M9: 5.8 | N9: 2 | O9: 66.6 | P9: 2 | Q9: 4.2 | S9: Whole Installation table A5:H18:
A10: Apr | B10: 150 | C10: =MAX(M10,M25,M40,M55) -> 136.2151795 | D10: =AVERAGE(N10,N25,N40,N55) -> 2.719052893 | E10: =MAX(O10,O25,O40,O55) -> 1258.363037 | F10: 50 | G10: =AVERAGE(P10,P25,P40,P55) -> 2.2425 | H10: =MAX(Q10,Q25,Q40,Q55) -> 10.35 | L10: Apr | M10: 11.520621 | N10: 2.423249287 | O10: 30.002701 | P10: 2.42 | Q10: 4 | S10: Mean: for 10-min and daily periods use average of all operational combustion lines.
A11: May | B11: 150 | C11: 95.11837 | D11: 3.317442342 | E11: 311.583466 | F11: 50 | G11: 2.7675 | H11: 23.25 | L11: May | M11: 20.3448695 | N11: 1.552526442 | O11: 311.583466 | P11: 1.42 | Q11: 5.35
A12: Jun | B12: 150 | C12: 259.2659835 | D12: 1.285275336 | E12: 1719.602295 | F12: 50 | G12: 2.0725 | H12: 7.04 | L12: Jun | M12: 259.2659835 | N12: 1.156250371 | O12: 1719.602295 | P12: 4.75 | Q12: 6.34
A13: Jul | B13: 150 | C13: =MAX(M13,M28,M43,M58) -> 144.8209455 | D13: =AVERAGE(N13,N28,N43,N58) -> 1.976492028 | E13: =MAX(O13,O28,O43,O58) -> 2814.317871 | F13: 50 | G13: =AVERAGE(P13,P28,P43,P58) -> 1.505 | H13: =MAX(Q13,Q28,Q43,Q58) -> 12.41 | L13: Jul | M13: 23.3431885 | N13: 2.44916328 | O13: 177.016037 | P13: 2.45 | Q13: 6.41 | S13: Maximum: for 10-min and daily periods use the highest of all operational combustion lines in any month.
A14: Aug | B14: 150 | C14: 591.2612915 | D14: 2.1883907 | E14: 1307.390869 | F14: 50 | G14: 0.93 | H14: 3.57 | L14: Aug | M14: 8.457736 | N14: 1.329030009 | O14: 35.073875 | P14: 1.33 | Q14: 3.57
A15: Sep | B15: 150 | C15: 190.6848145 | D15: 1.420946402 | E15: 382.666016 | F15: 50 | G15: 0.85 | H15: 3.24 | L15: Sep | M15: 9.23135 | N15: 1.123317813 | O15: 83.266785 | P15: 1.12 | Q15: 2.24
A16: Oct | B16: 150 | C16: =MAX(M16,M31,M46,M61) -> 143.77 | D16: =AVERAGE(N16,N31,N46,N61) -> 1.155 | E16: =MAX(O16,O31,O46,O61) -> 329.15 | F16: 50 | G16: =AVERAGE(P16,P31,P46,P61) -> 0.95 | H16: =MAX(Q16,Q31,Q46,Q61) -> 14.92 | L16: Oct | M16: 5.59 | N16: 0.65 | O16: 34.39 | P16: 0.65 | Q16: 1.22
A17: Nov | B17: 150 | C17: =MAX(M17,N32,M47,M62) -> 9.15 | D17: =AVERAGE(N17,N32,N47,N62) -> 1.2275 | E17: =MAX(O17,O32,O47,O62) -> 1488.26 | F17: 50 | G17: =AVERAGE(P17,P32,P47,P62) -> 1.2275 | H17: =MAX(Q17,Q32,Q47,Q62) -> 12.54 | L17: Nov | M17: 9.15 | N17: 0.93 | O17: 34.09 | P17: 0.93 | Q17: 2.85
A18: Dec | B18: 150 | C18: =MAX(M18,M33,M48,M63) -> 5.72 | D18: =AVERAGE(N18,N33,N48,N63) -> 1.7225 | E18: =MAX(O18,O33,O48,O63) -> 341.8 | F18: 50 | G18: =AVERAGE(P18,P33,P48,P63) -> 1.2675 | H18: 3.41 | L18: Dec | M18: 4.27 | N18: 0.16 | O18: 145.22 | P18: 0.12 | Q18: 0.66
L19: Annual | M19: =AVERAGE(M7:M18) -> 30.29781237 | N19: =AVERAGE(N7:N9) -> 1.333333333 | O19: =MAX(O7:O18) -> 1719.602295 | P19: =AVERAGE(P7:P18) -> 1.599166667 | Q19: =MAX(Q7:Q18) -> 6.41
K21: =+A6 -> 2022 | L21: mg/Nm3 | M21: 95%ile 10-min avg maximum | N21: Monthly CO 10-min avg mean | O21: 10-min avg maximum | P21: Monthly daily mean | Q21: Monthly daily maximum
K22: A2 | L22: Jan | M22: 3 | N22: 1 | O22: 287 | P22: 1 | Q22: 3
L23: Feb | M23: 4 | N23: 2 | O23: 16 | P23: 2 | Q23: 4
L24: Mar | M24: 2 | N24: 1 | O24: 1258 | P24: 1 | Q24: 2
L25: Apr | M25: 10.50978 | N25: 1.378568409 | O25: 1258.363037 | P25: 1.25 | Q25: 7.46
L26: May | M26: 6.893606 | N26: 0.9515527455 | O26: 21.704834 | P26: 0.95 | Q26: 2.33
L27: Jun | M27: 18.6963405 | N27: 1.156250371 | O27: 176.13266 | P27: 1 | Q27: 3.5
L28: Jul | M28: 144.8209455 | N28: 4.332137956 | O28: 2814.317871 | P28: 2.45 | Q28: 12.41
L29: Aug | M29: 11.516357 | N29: 1.012124889 | O29: 51.540512 | P29: 1 | Q29: 3.17
L30: Sep | M30: 4.8458725 | N30: 0.7521645525 | O30: 44.969971 | P30: 0.75 | Q30: 1.85
L31: Oct | M31: 6.61 | N31: 0.51 | O31: 60.13 | P31: 0.51 | Q31: 1.67
L32: Nov | M32: 7.04 | N32: 1.88 | O32: 1488.26 | P32: 1.88 | Q32: 12.54
L33: Dec | M33: 5.72 | N33: 2.44 | P33: 2.44 | Q33: 3.41
L34: Annual | M34: =AVERAGE(M22:M33) -> 18.80440846 | N34: =AVERAGE(N22:N25) -> 1.344642102 | O34: =MAX(O22:O33) -> 2814.317871 | P34: =AVERAGE(P22:P33) -> 1.3525 | Q34: =MAX(Q22:Q33) -> 12.54
K36: =+A6 -> 2022 | L36: mg/Nm3 | M36: 95%ile 10-min avg maximum | N36: Monthly CO 10-min avg mean | O36: 10-min avg maximum | P36: Monthly daily mean | Q36: Monthly daily maximum
K37: A3 | L37: Jan | M37: 3 | N37: 1 | O37: 300 | P37: 1 | Q37: 3
L38: Feb | M38: 3 | N38: 1 | O38: 59 | P38: 1 | Q38: 2
L39: Mar | M39: 2 | N39: 1 | O39: 99 | P39: 1 | Q39: 2
L40: Apr | M40: 136.2151795 | N40: 5.000390205 | O40: 361.919556 | P40: 3.47 | Q40: 10.35
L41: May | M41: 95.11837 | N41: 3.648087292 | O41: 137.954544 | P41: 2.44 | Q41: 12.49
L42: Jun | M42: 7.052104 | N42: 0.5846468193 | O42: 40.116688 | P42: 0.48 | Q42: 0.87
L43: Jul | M43: 5.203088 | N43: 0.294543586 | O43: 56.793308 | P43: 0.29 | Q43: 1.08
L44: Aug | M44: 27.8382885 | N44: 0.6094736212 | O44: 218.221863 | P44: 0.47 | Q44: 1.44
L45: Sep | M45: 3.044054 | N45: 0.4414529306 | O45: 44.969971 | P45: 0.44 | Q45: 0.97
L46: Oct | M46: 4.78 | N46: 0.6 | O46: 24.6 | P46: 0.6 | Q46: 1.5
L47: Nov | M47: 3.6 | N47: 0.68 | O47: 13.96 | P47: 0.68 | Q47: 1.11
A48: Comments : | L48: Dec | M48: 4.08 | N48: 1.07 | O48: 145.11 | P48: 1.07 | Q48: 2.16
A49: Environment Agency explanatory note: The 10-minute average ELV is based on the “95th percentile”. In this case this means that 95% of the 10 minute averages in the relevant 24-hour period (i.e. 137) must be below 150 mg/Nm3, and 5% (i.e. 7) are allowed to be any value above 150 mg/Nm3. Whilst we expect operators to minimise CO emissions at all times, it is perfectly acceptable for the value of the maximum 10-minute average to be above 150 mg/Nm3, provided the 95th percentile ELV has been met for that period. | L49: Annual | M49: =AVERAGE(M37:M48) -> 24.57759033 | N49: =AVERAGE(N37:N39) -> 1 | O49: =MAX(O37:O48) -> 361.919556 | P49: =AVERAGE(P37:P48) -> 1.078333333 | Q49: =MAX(Q37:Q48) -> 12.49
K51: =+A6 -> 2022 | L51: mg/Nm3 | M51: 95%ile 10-min avg maximum | N51: Monthly CO 10-min avg mean | O51: 10-min avg maximum | P51: Monthly daily mean | Q51: Monthly daily maximum
K52: A4 | L52: Jan | M52: 3 | N52: 1 | O52: 62 | P52: 1 | Q52: 2
L53: Feb | M53: 3 | N53: 2 | O53: 208 | P53: 2 | Q53: 3
L54: Mar | M54: 4 | N54: 2 | O54: 250 | P54: 2 | Q54: 3
L55: Apr | M55: 34.978897 | N55: 2.074003669 | O55: 36.912224 | P55: 1.83 | Q55: 3.24
L56: May | M56: 66.481159 | N56: 7.11760289 | O56: 160.760391 | P56: 6.26 | Q56: 23.25
L57: Jun | M57: 24.9242085 | N57: 2.243953785 | O57: 200.249176 | P57: 2.06 | Q57: 7.04
L58: Jul | M58: 5.4936015 | N58: 0.8301232908 | O58: 112.566109 | P58: 0.83 | Q58: 1.44
L59: Aug | M59: 591.2612915 | N59: 5.802934281 | O59: 1307.390869 | P59: 0.92 | Q59: 1.78
L60: Sep | M60: 190.6848145 | N60: 3.366850311 | O60: 382.666016 | P60: 1.09 | Q60: 3.24
L61: Oct | M61: 143.77 | N61: 2.86 | O61: 329.15 | P61: 2.04 | Q61: 14.92
L62: Nov | M62: 4.71 | N62: 1.42 | O62: 27.29 | P62: 1.42 | Q62: 2.21
L63: Dec | M63: 5.46 | N63: 3.22 | O63: 341.8 | P63: 1.44 | Q63: 2.28
L64: Annual | M64: =AVERAGE(M52:M63) -> 89.81366433 | N64: =AVERAGE(N52:N54) -> 1.666666667 | O64: =MAX(O52:O63) -> 1307.390869 | P64: =AVERAGE(P52:P63) -> 1.9075 | Q64: =MAX(Q52:Q63) -> 23.25

Sheet IBA
A1: Parameter | B1: Q1-P1 | C1: Q1-P2 | D1: Q2-P1 | E1: Q2-P2 | F1: Q3-P1 | G1: Q3-P2 | H1: Q4-P1 | I1: Q4-P2
A2: Antimony | B2: 129.02 | C2: 154.4 | D2: 125 | E2: 213 | F2: 228.5 | G2: 285.5 | H2: 308.1 | I2: 409.6
A3: Cadmium | B3: 13.57 | C3: 14.93 | D3: 18 | E3: 12 | F3: 23.5 | G3: 25.9 | H3: 26.7 | I3: 35.3
A4: Thallium | B4: 1.76 | C4: 2.07 | D4: 0.9 | E4: 1 | F4: 1.23 | G4: 1.34 | H4: 1.63 | I4: 1.12
A5: Mercury | B5: 1.05 | C5: 1 | D5: 1 | E5: 1 | F5: 1.05 | G5: 1.01 | H5: 1.02 | I5: 1.28
A6: Lead | B6: 531.27 | C6: 681.33 | D6: 632 | E6: 395 | F6: 507.7 | G6: 572.1 | H6: 629.9 | I6: 667
A7: Chromium | B7: 109.68 | C7: 113.31 | D7: 56 | E7: 69 | F7: 152.2 | G7: 157.2 | H7: 180.3 | I7: 177
A8: Copper | B8: 2890.5 | C8: 3431.53 | D8: 2060 | E8: 1988 | F8: 2342.2 | G8: 2722.2 | H8: 1903.6 | I8: 2234.1
A9: Arsenic | B9: 8.84 | C9: 9.18 | D9: 8.3 | E9: 8.9 | F9: 15.85 | G9: 16.56 | H9: 21.7 | I9: 27.3
A10: Cobalt | B10: 51.63 | C10: 77.26 | D10: 46 | E10: 36 | F10: 63.1 | G10: 82.3 | H10: 67.6 | I10: 85.1
A11: Vanadium | B11: 41.02 | C11: 42.11 | D11: 18 | E11: 19 | F11: 27.7 | G11: 25.8 | H11: 54.1 | I11: 1677.52
A12: Zinc | B12: 3375.67 | C12: 3897.71 | D12: 3012 | E12: 2813 | F12: 2718.9 | G12: 4498.8 | H12: 4506.5 | I12: 5177.6
A13: Manganese | B13: 703.25 | C13: 746.6 | D13: 426 | E13: 428 | F13: 833.5 | G13: 890.7 | H13: 986.7 | I13: 1082.3
A14: Nickel | B14: 110.23 | C14: 203.12 | D14: 71 | E14: 72 | F14: 136.3 | G14: 147.9 | H14: 145.8 | I14: 146.9
A15: Dioxins/furans ITEQ | B15: 2.38-3.1 | C15: 3.93-4.44 | D15: 15.6 | E15: 6.89 | F15: 11.2 | G15: 9.5 | H15: 10.0-10.3 | I15: 19
A16: Dioxins/furans TEQ (WHO)-Mammals | B16: 1.96-2.85 | C16: 3.63-4.14 | D16: 14.6 | E16: 6.82 | F16: 10.5 | G16: 9.39 | H16: 11.0-11.2 | I16: 17.8
A17: Dioxins/furans TEQ (WHO) Fish | B17: 2.21-3.16 | C17: 3.62-4.32 | D17: 15.9 | E17: 7.52 | F17: 11.7 | G17: 10.2 | H17: 10.8 | I17: 17.8
A18: Dioxins/furans TEQ (WHO) Birds | B18: 3.14-4.71 | C18: 6.24-6.73 | D18: 26.8 | E18: 11.4 | F18: 18.2 | G18: 15.3 | H18: 16.7 | I18: 27.2
A19: Dioxins like PCBs (WHO)-Mammals | B19: 0.0005-0.194 | C19: 0.54-0.54 | D19: 0.337 | E19: 0.271 | F19: 0.524 | G19: 0.352 | H19: 1.18 | I19: 1.46
A20: Dioxins like PCBs (WHO)-Fish | B20: 0.0002-0.0098 | C20: 0.0246-0.0246 | D20: 0.0168 | E20: 0.013 | F20: 0.0234 | G20: 0.0166 | H20: 0.0509 | I20: 0.064
A21: Dioxins like PCBs (WHO)-Birds | B21: 0.0844-0.289 | C21: 0.683-0.684 | D21: 1.1 | E21: 0.81 | F21: 1.15 | G21: 0.708 | H21: 1.62 | I21: 2.35

Sheet APC
A1: Parameter | B1: Q1-P1 | C1: Q1-P2 | D1: Q2-P1 | E1: Q2-P2 | F1: Q3 - P1 | G1: Q3-P2 | H1: Q4 - P1 | I1: Q4-P2
A2: Antimony | B2: 435 | C2: 608 | D2: 707.58 | E2: 816.17 | F2: 791.7 | G2: 703.5 | H2: 936.4 | I2: 826.7
A3: Cadmium | B3: 121 | C3: 170 | D3: 244.97 | E3: 250.26 | F3: 191.8 | G3: 218.9 | H3: 220.1 | I3: 227.5
A4: Thallium | B4: <1 | C4: 11 | D4: 1.15 | E4: 1 | F4: 1.43 | G4: 1 | H4: 1.38 | I4: 1.85
A5: Mercury | B5: 3.4 | C5: 3.6 | D5: 4.48 | E5: 4.7 | F5: 4.1 | G5: 3.6 | H5: 5.13 | I5: 6.49
A6: Lead | B6: 1094 | C6: 1415 | D6: 1401.1 | E6: 1334.83 | F6: 1371.3 | G6: 1369.6 | H6: 1365.5 | I6: 1416.9
A7: Chromium | B7: 33 | C7: 56 | D7: 41.31 | E7: 43.08 | F7: 35.5 | G7: 46.4 | H7: 37.6 | I7: 23.1
A8: Cobalt | B8: 4.7 | C8: 11 | D8: 3.77 | E8: 4.12 | F8: 3.82 | G8: 6.44 | H8: 5.4 | I8: 36.08
A9: Copper | B9: 356 | C9: 528 | D9: 458.39 | E9: 486.37 | F9: 465.5 | G9: 476.7 | H9: 488.1 | I9: 539.7
A10: Manganese | B10: 196 | C10: 297 | D10: 157.24 | E10: 157.3 | F10: 176.3 | G10: 160.3 | H10: 178.3 | I10: 206.9
A11: Nickel | B11: 12 | C11: 29 | D11: 18.51 | E11: 20.55 | F11: 17.6 | G11: 24.6 | H11: 15.7 | I11: 23.8
A12: Arsenic | B12: 17 | C12: 28 | D12: 41.9 | E12: 40.27 | F12: 26.2 | G12: 34.8 | H12: 17.6 | I12: 40.9
A13: Vanadium | B13: 10 | C13: 21 | D13: 10.78 | E13: 11.26 | F13: 4.8 | G13: 1 | H13: 9.7 | I13: 11.3
A14: Zinc | B14: 7449 | C14: 9785 | D14: 9544.67 | E14: 10533 | F14: 7851 | G14: 8890 | H14: 10586.5 | I14: 10605
A15: Dioxins/furans ITEQ (ng/kg) | B15: 151-151 | C15: 270-270 | D15: 211.33 | E15: 235.33 | F15: 214 | G15: 247 | H15: 140 | I15: 140
A16: Dioxins/furans TEQ (WHO)-Mammals | B16: 138-138 | C16: 240-240 | D16: 194.33 | E16: 216 | F16: 203 | G16: 227 | H16: 130 | I16: 254
A17: Dioxins/furans TEQ (WHO) Fish | B17: 158-158 | C17: 281-281 | D17: 218.67 | E17: 248.33 | F17: 234 | G17: 267 | H17: 151 | I17: 288
A18: Dioxins/furans TEQ (WHO) Birds | B18: 325-325 | C18: 632-632 | D18: 410.33 | E18: 456.33 | F18: 431 | G18: 440 | H18: 277 | I18: 534
A19: Dioxins like PCBs (WHO)-Mammals | B19: 3.7-3.7 | C19: 2.47-2.47 | D19: 8.77 | E19: 7.1 | F19: 1.32 | G19: 5.95 | H19: 2.7 | I19: 10.7
A20: Dioxins like PCBs (WHO)-Fish | B20: 0.161-0.161 | C20: 0.113-0.113 | D20: 0.388 | E20: 0.315 | F20: 0.0601 | G20: 0.24 | H20: 0.13 | I20: 0.46
A21: Dioxins like PCBs (WHO)-Birds | B21: 5.54-5.54 | C21: 4.22-4.22 | D21: 12.86 | E21: 10.93 | F21: 2.73 | G21: 8.65 | H21: 4.6 | I21: 15.3

Sheet Invalid Readings Log
A2: Line 1 - A1 | F2: Line 2 - A2
A3: Date Range | B3: Comments | F3: Date Range | G3: Comments
A4: 25-26th January | B4: Ash extractor works | F4: 31st January | G4: Ash extractor bearing replacement
A5: 27th-28th February | B5: Compensator repiar | F5: 22nd-30th June | G5: Compromised isolation
A6: 1st-2nd March | B6: Compensator replacement | F6: 1st - 10th July | G6: Compromised isolation
A7: 12th-15th May | B7: S/Htr tube failure
A8: 24th-28th May | B8: Ash blockage and extractor issues
A9: 6th-30th June | B9: Suspected tube leak/ Economiser warm up valve
A10: 1st - 8th July | B10: Issue with Eco warm up valve
A11: 25th August | B11: Feed table issues
A14: Line 3 - A3 | F14: Line 4 - A4
A15: Date Range | B15: Comments | F15: Date Range | G15: Comments
A16: 20th-24th January | B16: Tube repair | F16: 7th January | G16: Hydraulic repair
A17: 6th-9th February | B17: Tube repair | F17: 9th-12th March | G17: Tube repair
A18: 4th March | B18: Boiler cleaning | F18: 20th April-11th May | G18: Outage
A19: 8th April-27th April | B19: Outage | F19: 11th - 14th October 2023 | G19: Superheater leak repair (77hrs downtime)
A20: 7th-17th May | B20: Economiser leak
A21: 29th - 30th Sept | B21: Boiler tube leak
